Workbook

Sheet Orçamento
O3: UNIDADE ESCOLAR | X3: CÓDIGO INEP
M4: =IF($M$7="MANUAL","DESPROTEJA A PLANILHA PARA FORMATAR","") ->  | O4: CRE DE IPORÁ | X4: 52027163
A6: Nmax | O6: OBRA | S6: DATA | X6: CIDADE
A7: =MAX($C$18:$C$328) -> 4 | O7: REFORMA E AMPLIAÇÃO | S7: 2020-06-10 | X7: IPORÁ
O9: CRE | R9: ENDEREÇO | S9: REFERÊNCIA AGETOP | X9: REFERÊNCIA SINAPI
O10: CRE DE IPORÁ | R10: Rua D - Vila Padre Cícero - S/N - CEP:76.200-000 | S10: ABR/19 | T10: DESONERADA | X10: ABR/20 | Y10: DESONERADA | Z10: DESONERADA
O12: ÁREA EXISTENTE (M²) | R12: ÁREA A CONSTRUIR (M²) | S12: ÁREA A DEMOLIR (M²) | X12: ÁREA TOTAL CONSTRUÍDA (M²)
O13: 773 | R13: 1.52 | X13: 774.52
L15: FILTRO | O15: PLANILHA ORÇAMENTÁRIA
A16: Nível E | B16: Save Nivel | C16: Nível C | D16: Altura | E16: n1 | F16: n2 | G16: n3 | H16: n4 | I16: n5 | J16: Czero | K16: Cnível | L16: ↓ | M16: Nível | N16: Nível Corrigido | O16: ITEM | P16: TABELA | Q16: CODIGO | R16: DESCRIÇÃO DOS SERVIÇOS | S16: UNID | T16: QUANT | U16: REPET | V16: QUANT TOTAL | W16: MAT | X16: MO | Y16: T.SERVIÇO UNIT | Z16: VALOR TOTAL | AA16: OBSERVAÇÕES¹
A17: =CHOOSE(1+LOG(1+2*(ORÇAMENTO.Nivel="Nível 1")+4*(ORÇAMENTO.Nivel="Nível 2")+8*(ORÇAMENTO.Nivel="Nível 3")+16*(ORÇAMENTO.Nivel="Nível 4")+32*(ORÇAMENTO.Nivel="Serviço"),2),0,1,2,3,4,"S") -> S | B17: =IF(OR(C17="s",C17=0),OFFSET(B17,-1,0),C17) -> Save Nivel | C17: =IF(OFFSET(C17,-1,0)="L",1,IF(OFFSET(C17,-1,0)=1,2,IF(OR(A17="s",A17=0),"S",IF(AND(OFFSET(C17,-1,0)=2,A17=4),3,IF(AND(OR(OFFSET(C17,-1,0)="s",OFFSET(C17,-1,0)=0),A17<>"s",A17>OFFSET(B17,-1,0)),OFFSET(B17,-1,0),A17))))) -> S | D17: =IF(OR(C17="S",C17=0),0,IF(ISERROR(K17),J17,SMALL(J17:K17,1))) -> 0 | E17: =IF($C17=1,OFFSET(E17,-1,0)+1,OFFSET(E17,-1,0)) -> n1 | F17: =IF($C17=1,0,IF($C17=2,OFFSET(F17,-1,0)+1,OFFSET(F17,-1,0))) -> n2 | G17: =IF(AND($C17<=2,$C17<>0),0,IF($C17=3,OFFSET(G17,-1,0)+1,OFFSET(G17,-1,0))) -> n3 | H17: =IF(AND($C17<=3,$C17<>0),0,IF($C17=4,OFFSET(H17,-1,0)+1,OFFSET(H17,-1,0))) -> n4 | I17: =IF(AND($C17<=4,$C17<>0),0,IF(AND($C17="S",$Y17>0),OFFSET(I17,-1,0)+1,OFFSET(I17,-1,0))) -> n5 | J17: =IF(OR($C17="S",$C17=0),0,MATCH(0,OFFSET($D17,1,$C17,ROW($C$328)-ROW($C17)),0)) -> 0 | K17: =IF(OR($C17="S",$C17=0),0,MATCH(OFFSET($D17,0,$C17)+1,OFFSET($D17,1,$C17,ROW($C$328)-ROW($C17)),0)) -> 0 | L17: =IF(OR(Y17>0,$C17=1),"F","") ->  | M17: Serviço | N17: =CHOOSE(1+LOG(1+2*(C17=1)+4*(C17=2)+8*(C17=3)+16*(C17=4)+32*(C17="S"),2),"","Nível 1","Nível 2","Nível 3","Nível 4","Serviço") -> Serviço | O17: - | P17: SINAPI | R17: (sem código) | S17: - | U17: REPET | V17: - | W17: 0 | X17: 0 | Y17: 0 | Z17: -
A18: 0 | C18: L | D18: =COUNTA(OFFSET(D18,1,0):D$328) -> 309 | E18: =LEFT(O19,1)-1 -> 0 | L18: F | M18: LOTE | N18: LOTE | O18: REFORMA E AMPLIAÇÃO - CRE DE IPORÁ | Z18: 118659.55
A19: =CHOOSE(1+LOG(1+2*(ORÇAMENTO.Nivel="Nível 1")+4*(ORÇAMENTO.Nivel="Nível 2")+8*(ORÇAMENTO.Nivel="Nível 3")+16*(ORÇAMENTO.Nivel="Nível 4")+32*(ORÇAMENTO.Nivel="Serviço"),2),0,1,2,3,4,"S") -> 1 | B19: =IF(OR(C19="s",C19=0),OFFSET(B19,-1,0),C19) -> 1 | C19: =IF(OFFSET(C19,-1,0)="L",1,IF(OFFSET(C19,-1,0)=1,2,IF(OR(A19="s",A19=0),"S",IF(AND(OFFSET(C19,-1,0)=2,A19=4),3,IF(AND(OR(OFFSET(C19,-1,0)="s",OFFSET(C19,-1,0)=0),A19<>"s",A19>OFFSET(B19,-1,0)),OFFSET(B19,-1,0),A19))))) -> 1 | D19: =IF(OR(C19="S",C19=0),0,IF(ISERROR(K19),J19,SMALL(J19:K19,1))) -> 11 | E19: =IF($C19=1,OFFSET(E19,-1,0)+1,OFFSET(E19,-1,0)) -> 1 | F19: =IF($C19=1,0,IF($C19=2,OFFSET(F19,-1,0)+1,OFFSET(F19,-1,0))) -> 0 | G19: =IF(AND($C19<=2,$C19<>0),0,IF($C19=3,OFFSET(G19,-1,0)+1,OFFSET(G19,-1,0))) -> 0 | H19: =IF(AND($C19<=3,$C19<>0),0,IF($C19=4,OFFSET(H19,-1,0)+1,OFFSET(H19,-1,0))) -> 0 | I19: =IF(AND($C19<=4,$C19<>0),0,IF(AND($C19="S",$Y19>0),OFFSET(I19,-1,0)+1,OFFSET(I19,-1,0))) -> 0 | J19: =IF(OR($C19="S",$C19=0),0,MATCH(0,OFFSET($D19,1,$C19,ROW($C$328)-ROW($C19)),0)) -> 309 | K19: =IF(OR($C19="S",$C19=0),0,MATCH(OFFSET($D19,0,$C19)+1,OFFSET($D19,1,$C19,ROW($C$328)-ROW($C19)),0)) -> 11 | L19: =IF(OR(Y19>0,$C19=1),"F","") -> F | M19: Nível 1 | N19: =CHOOSE(1+LOG(1+2*(C19=1)+4*(C19=2)+8*(C19=3)+16*(C19=4)+32*(C19="S"),2),"","Nível 1","Nível 2","Nível 3","Nível 4","Serviço") -> Nível 1 | O19: 1. | P19: AGETOP | R19: ADEQUAÇÕES DE ACESSIBILIDADE (CALÇADAS EXTERNAS) | S19: UN | T19: 1 | U19: 1 | V19: 1
A20: 2 | B20: 2 | C20: 2 | D20: 2 | E20: 1 | F20: 1 | G20: 0 | H20: 0 | I20: 0 | J20: 10 | K20: 2 | M20: Nível 2 | N20: Nível 2 | O20: 1.1. | P20: AGETOP | R20: SERVIÇOS PRELIMINARES | S20: - | U20: 1 | V20: -
A21: S | B21: 2 | C21: S | D21: 0 | E21: 1 | F21: 1 | G21: 0 | H21: 0 | I21: 0 | J21: 0 | K21: 0 | M21: Serviço | N21: Serviço | O21: 1.1.0.0.1. | P21: AGETOP | Q21: 20121 | R21: DEM. MANUAL EM CONCR.SIMPLES C/TR.ATE CB.E CARGA (O.C.) | S21: m3 | T21: 2.29 | U21: 1 | V21: 2.29
A22: 2 | B22: 2 | C22: 2 | D22: 3 | E22: 1 | F22: 2 | G22: 0 | H22: 0 | I22: 0 | J22: 8 | K22: 3 | M22: Nível 2 | N22: Nível 2 | O22: 1.2. | P22: AGETOP | R22: TRANSPORTES | S22: - | U22: 1 | V22: -
A23: S | B23: 2 | C23: S | D23: 0 | E23: 1 | F23: 2 | G23: 0 | H23: 0 | I23: 0 | J23: 0 | K23: 0 | M23: Serviço | N23: Serviço | O23: 1.2.0.0.1. | P23: SINAPI | Q23: 72900 | R23: TRANSPORTE DE ENTULHO COM CAMINHAO BASCULANTE 6 M3, RODOVIA PAVIMENTADA, DMT 0,5 A 1,0 KM | S23: M3 | T23: 2.29 | U23: 1 | V23: 2.29
A24: S | B24: 2 | C24: S | D24: 0 | E24: 1 | F24: 2 | G24: 0 | H24: 0 | I24: 0 | J24: 0 | K24: 0 | M24: Serviço | N24: Serviço | O24: 1.2.0.0.2. | P24: SINAPI | Q24: 72897 | R24: CARGA MANUAL DE ENTULHO EM CAMINHAO BASCULANTE 6 M3 | S24: M3 | T24: 2.29 | U24: 1 | V24: 2.29
A25: 2 | B25: 2 | C25: 2 | D25: 2 | E25: 1 | F25: 3 | G25: 0 | H25: 0 | I25: 0 | J25: 5 | K25: 2 | M25: Nível 2 | N25: Nível 2 | O25: 1.3. | R25: ESQUADRIAS METÁLICAS | S25: - | U25: 1 | V25: -
A26: S | B26: 2 | C26: S | D26: 0 | E26: 1 | F26: 3 | G26: 0 | H26: 0 | I26: 0 | J26: 0 | K26: 0 | M26: Serviço | N26: Serviço | O26: 1.3.0.0.1. | P26: COMPOSIÇÃO | Q26: COMP 084_SEE | R26: GUARDA-CORPO COM CORRIMÃO - SEDUC | S26: M | T26: 11.4 | U26: 1 | V26: 11.4
A27: 2 | B27: 2 | C27: 2 | D27: 3 | E27: 1 | F27: 4 | G27: 0 | H27: 0 | I27: 0 | J27: 3 | K27: 23 | M27: Nível 2 | N27: Nível 2 | O27: 1.4. | R27: REVESTIMENTO DE PISO | S27: - | U27: 1 | V27: -
A28: S | B28: 2 | C28: S | D28: 0 | E28: 1 | F28: 4 | G28: 0 | H28: 0 | I28: 0 | J28: 0 | K28: 0 | M28: Serviço | N28: Serviço | O28: 1.4.0.0.1. | P28: AGETOP | Q28: 220102 | R28: PISO CONCRETO DESEMPENADO ESPESSURA = 5 CM 1:2,5:3,5 | S28: m2 | T28: 12.3 | U28: 1 | V28: 12.3
A29: S | B29: 2 | C29: S | D29: 0 | E29: 1 | F29: 4 | G29: 0 | H29: 0 | I29: 0 | J29: 0 | K29: 0 | M29: Serviço | N29: Serviço | O29: 1.4.0.0.2. | P29: AGETOP | Q29: 221126 | R29: PISO DE LADRILHO HIDRÁULICO COLORIDO MODELO TÁTIL ( ALERTA OU DIRECIONAL) SEM LASTRO | S29: m2 | T29: 40.1 | U29: 1 | V29: 40.1
A30: 1 | B30: 1 | C30: 1 | D30: 43 | E30: 2 | F30: 0 | G30: 0 | H30: 0 | I30: 0 | J30: 298 | K30: 43 | L30: F | M30: Nível 1 | N30: Nível 1 | O30: 2. | P30: SINAPI | R30: REFORMA E ADEQUAÇÃO DOS SANITÁRIOS | S30: UN | T30: 1 | U30: 1 | V30: 1
A31: 2 | B31: 2 | C31: 2 | D31: 11 | E31: 2 | F31: 1 | G31: 0 | H31: 0 | I31: 0 | J31: 42 | K31: 11 | M31: Nível 2 | N31: Nível 2 | O31: 2.1. | P31: SINAPI | R31: SERVIÇOS PRELIMINARES | S31: - | U31: 1 | V31: -
A32: S | B32: 2 | C32: S | D32: 0 | E32: 2 | F32: 1 | G32: 0 | H32: 0 | I32: 0 | J32: 0 | K32: 0 | M32: Serviço | N32: Serviço | O32: 2.1.0.0.1. | P32: SINAPI | Q32: 97640 | R32: REMOÇÃO DE FORROS DE DRYWALL, PVC E FIBROMINERAL, DE FORMA MANUAL, SEM REAPROVEITAMENTO. AF_12/2017 | S32: M2 | T32: 27.47 | U32: 1 | V32: 27.47
A33: S | B33: 2 | C33: S | D33: 0 | E33: 2 | F33: 1 | G33: 0 | H33: 0 | I33: 0 | J33: 0 | K33: 0 | M33: Serviço | N33: Serviço | O33: 2.1.0.0.2. | P33: SINAPI | Q33: 97642 | R33: REMOÇÃO DE TRAMA METÁLICA OU DE MADEIRA PARA FORRO, DE FORMA MANUAL, SEM REAPROVEITAMENTO. AF_12/2017 | S33: M2 | T33: 27.47 | U33: 1 | V33: 27.47
A34: S | B34: 2 | C34: S | D34: 0 | E34: 2 | F34: 1 | G34: 0 | H34: 0 | I34: 0 | J34: 0 | K34: 0 | M34: Serviço | N34: Serviço | O34: 2.1.0.0.3. | P34: AGETOP | Q34: 20106 | R34: RETIRADA DE JANELAS OU PORTAIS C/ TRANSP. ATÉ CB. E CARGA | S34: m2 | T34: 10.8 | U34: 1 | V34: 10.8
A35: S | B35: 2 | C35: S | D35: 0 | E35: 2 | F35: 1 | G35: 0 | H35: 0 | I35: 0 | J35: 0 | K35: 0 | M35: Serviço | N35: Serviço | O35: 2.1.0.0.4. | P35: AGETOP | Q35: 20111 | R35: DEM.PISO CERAM.SOBRE LASTRO CONC.C/TR.CB.E CARGA | S35: m2 | T35: 42.78 | U35: 1 | V35: 42.78
A36: S | B36: 2 | C36: S | D36: 0 | E36: 2 | F36: 1 | G36: 0 | H36: 0 | I36: 0 | J36: 0 | K36: 0 | M36: Serviço | N36: Serviço | O36: 2.1.0.0.5. | P36: AGETOP | Q36: 20115 | R36: DEMOLIÇÃO DE REVESTIMENTOS COM AZULEJOS C/TRANSP.ATE CB. E CARGA | S36: m2 | T36: 60.6 | U36: 1 | V36: 60.6
A37: S | B37: 2 | C37: S | D37: 0 | E37: 2 | F37: 1 | G37: 0 | H37: 0 | I37: 0 | J37: 0 | K37: 0 | M37: Serviço | N37: Serviço | O37: 2.1.0.0.6. | P37: AGETOP | Q37: 20118 | R37: DEM.ALVEN.TIJOLO S/REAP. C/TR.ATE CB. E CARGA | S37: m3 | T37: 0.57 | U37: 1 | V37: 0.57
A38: S | B38: 2 | C38: S | D38: 0 | E38: 2 | F38: 1 | G38: 0 | H38: 0 | I38: 0 | J38: 0 | K38: 0 | M38: Serviço | N38: Serviço | O38: 2.1.0.0.7. | P38: AGETOP | Q38: 20137 | R38: DEMOLIÇAO BACIA SANITARIA C/ TRANSP. ATÉ CB. E CARGA | S38: Un | T38: 3 | U38: 1 | V38: 3
A39: =CHOOSE(1+LOG(1+2*(ORÇAMENTO.Nivel="Nível 1")+4*(ORÇAMENTO.Nivel="Nível 2")+8*(ORÇAMENTO.Nivel="Nível 3")+16*(ORÇAMENTO.Nivel="Nível 4")+32*(ORÇAMENTO.Nivel="Serviço"),2),0,1,2,3,4,"S") -> S | B39: =IF(OR(C39="s",C39=0),OFFSET(B39,-1,0),C39) -> 2 | C39: =IF(OFFSET(C39,-1,0)="L",1,IF(OFFSET(C39,-1,0)=1,2,IF(OR(A39="s",A39=0),"S",IF(AND(OFFSET(C39,-1,0)=2,A39=4),3,IF(AND(OR(OFFSET(C39,-1,0)="s",OFFSET(C39,-1,0)=0),A39<>"s",A39>OFFSET(B39,-1,0)),OFFSET(B39,-1,0),A39))))) -> S | D39: =IF(OR(C39="S",C39=0),0,IF(ISERROR(K39),J39,SMALL(J39:K39,1))) -> 0 | E39: =IF($C39=1,OFFSET(E39,-1,0)+1,OFFSET(E39,-1,0)) -> 2 | F39: =IF($C39=1,0,IF($C39=2,OFFSET(F39,-1,0)+1,OFFSET(F39,-1,0))) -> 1 | G39: =IF(AND($C39<=2,$C39<>0),0,IF($C39=3,OFFSET(G39,-1,0)+1,OFFSET(G39,-1,0))) -> 0 | H39: =IF(AND($C39<=3,$C39<>0),0,IF($C39=4,OFFSET(H39,-1,0)+1,OFFSET(H39,-1,0))) -> 0 | I39: =IF(AND($C39<=4,$C39<>0),0,IF(AND($C39="S",$Y39>0),OFFSET(I39,-1,0)+1,OFFSET(I39,-1,0))) -> 0 | J39: 0 | K39: 0 | L39: =IF(OR(Y39>0,$C39=1),"F","") ->  | M39: Serviço | N39: =CHOOSE(1+LOG(1+2*(C39=1)+4*(C39=2)+8*(C39=3)+16*(C39=4)+32*(C39="S"),2),"","Nível 1","Nível 2","Nível 3","Nível 4","Serviço") -> Serviço | O39: 2.1.0.0.8. | P39: AGETOP | Q39: 20140 | R39: DEMOLIÇAO DE VÁLVULA DE DESCARGA C/ TRANSP. ATÉ CB. E CARGA | S39: Un | T39: 3 | U39: 1 | V39: 3
A40: S | B40: 2 | C40: S | D40: 0 | E40: 2 | F40: 1 | G40: 0 | H40: 0 | I40: 0 | J40: 0 | K40: 0 | M40: Serviço | N40: Serviço | O40: 2.1.0.0.9. | P40: AGETOP | Q40: 20139 | R40: DEMOLIÇAO DE BANCADAS C/ TRANSP. ATÉ CB. E CARGA | S40: m2 | T40: 1 | U40: 1 | V40: 1
A41: =CHOOSE(1+LOG(1+2*(ORÇAMENTO.Nivel="Nível 1")+4*(ORÇAMENTO.Nivel="Nível 2")+8*(ORÇAMENTO.Nivel="Nível 3")+16*(ORÇAMENTO.Nivel="Nível 4")+32*(ORÇAMENTO.Nivel="Serviço"),2),0,1,2,3,4,"S") -> S | B41: =IF(OR(C41="s",C41=0),OFFSET(B41,-1,0),C41) -> 2 | C41: =IF(OFFSET(C41,-1,0)="L",1,IF(OFFSET(C41,-1,0)=1,2,IF(OR(A41="s",A41=0),"S",IF(AND(OFFSET(C41,-1,0)=2,A41=4),3,IF(AND(OR(OFFSET(C41,-1,0)="s",OFFSET(C41,-1,0)=0),A41<>"s",A41>OFFSET(B41,-1,0)),OFFSET(B41,-1,0),A41))))) -> S | D41: =IF(OR(C41="S",C41=0),0,IF(ISERROR(K41),J41,SMALL(J41:K41,1))) -> 0 | E41: =IF($C41=1,OFFSET(E41,-1,0)+1,OFFSET(E41,-1,0)) -> 2 | F41: =IF($C41=1,0,IF($C41=2,OFFSET(F41,-1,0)+1,OFFSET(F41,-1,0))) -> 1 | G41: =IF(AND($C41<=2,$C41<>0),0,IF($C41=3,OFFSET(G41,-1,0)+1,OFFSET(G41,-1,0))) -> 0 | H41: =IF(AND($C41<=3,$C41<>0),0,IF($C41=4,OFFSET(H41,-1,0)+1,OFFSET(H41,-1,0))) -> 0 | I41: =IF(AND($C41<=4,$C41<>0),0,IF(AND($C41="S",$Y41>0),OFFSET(I41,-1,0)+1,OFFSET(I41,-1,0))) -> 0 | J41: =IF(OR($C41="S",$C41=0),0,MATCH(0,OFFSET($D41,1,$C41,ROW($C$328)-ROW($C41)),0)) -> 0 | K41: =IF(OR($C41="S",$C41=0),0,MATCH(OFFSET($D41,0,$C41)+1,OFFSET($D41,1,$C41,ROW($C$328)-ROW($C41)),0)) -> 0 | L41: =IF(OR(Y41>0,$C41=1),"F","") ->  | M41: Serviço | N41: =CHOOSE(1+LOG(1+2*(C41=1)+4*(C41=2)+8*(C41=3)+16*(C41=4)+32*(C41="S"),2),"","Nível 1","Nível 2","Nível 3","Nível 4","Serviço") -> Serviço | O41: 2.1.0.0.10. | P41: AGETOP | Q41: 20163 | R41: DEMOLIÇÃO DAS INSTALAÇÕES HIDROSANITÁRIAS E AFINS C/ TRANSP. ATÉ CB. E CARGA | S41: H | T41: 1 | U41: 1 | V41: 1
A42: 2 | B42: 2 | C42: 2 | D42: 3 | E42: 2 | F42: 2 | G42: 0 | H42: 0 | I42: 0 | J42: 31 | K42: 3 | M42: Nível 2 | N42: Nível 2 | O42: 2.2. | P42: AGETOP | R42: TRANSPORTES | S42: - | U42: 1 | V42: -
A43: S | B43: 2 | C43: S | D43: 0 | E43: 2 | F43: 2 | G43: 0 | H43: 0 | I43: 0 | J43: 0 | K43: 0 | M43: Serviço | N43: Serviço | O43: 2.2.0.0.1. | P43: SINAPI | Q43: 72900 | R43: TRANSPORTE DE ENTULHO COM CAMINHAO BASCULANTE 6 M3, RODOVIA PAVIMENTADA, DMT 0,5 A 1,0 KM | S43: M3 | T43: 4.69 | U43: 1 | V43: 4.69
A44: S | B44: 2 | C44: S | D44: 0 | E44: 2 | F44: 2 | G44: 0 | H44: 0 | I44: 0 | J44: 0 | K44: 0 | M44: Serviço | N44: Serviço | O44: 2.2.0.0.2. | P44: SINAPI | Q44: 72897 | R44: CARGA MANUAL DE ENTULHO EM CAMINHAO BASCULANTE 6 M3 | S44: M3 | T44: 4.69 | U44: 1 | V44: 4.69
A45: 2 | B45: 2 | C45: 2 | D45: 3 | E45: 2 | F45: 3 | G45: 0 | H45: 0 | I45: 0 | J45: 28 | K45: 3 | M45: Nível 2 | N45: Nível 2 | O45: 2.3. | P45: SINAPI | R45: ESTRUTURA | S45: - | U45: 1 | V45: -
A46: S | B46: 2 | C46: S | D46: 0 | E46: 2 | F46: 3 | G46: 0 | H46: 0 | I46: 0 | J46: 0 | K46: 0 | M46: Serviço | N46: Serviço | O46: 2.3.0.0.1. | P46: SINAPI | Q46: 93204 | R46: CINTA DE AMARRAÇÃO DE ALVENARIA MOLDADA IN LOCO EM CONCRETO. AF_03/2016 | S46: M | T46: 9.7 | U46: 1 | V46: 9.7
A47: =CHOOSE(1+LOG(1+2*(ORÇAMENTO.Nivel="Nível 1")+4*(ORÇAMENTO.Nivel="Nível 2")+8*(ORÇAMENTO.Nivel="Nível 3")+16*(ORÇAMENTO.Nivel="Nível 4")+32*(ORÇAMENTO.Nivel="Serviço"),2),0,1,2,3,4,"S") -> S | B47: =IF(OR(C47="s",C47=0),OFFSET(B47,-1,0),C47) -> 2 | C47: =IF(OFFSET(C47,-1,0)="L",1,IF(OFFSET(C47,-1,0)=1,2,IF(OR(A47="s",A47=0),"S",IF(AND(OFFSET(C47,-1,0)=2,A47=4),3,IF(AND(OR(OFFSET(C47,-1,0)="s",OFFSET(C47,-1,0)=0),A47<>"s",A47>OFFSET(B47,-1,0)),OFFSET(B47,-1,0),A47))))) -> S | D47: =IF(OR(C47="S",C47=0),0,IF(ISERROR(K47),J47,SMALL(J47:K47,1))) -> 0 | E47: =IF($C47=1,OFFSET(E47,-1,0)+1,OFFSET(E47,-1,0)) -> 2 | F47: =IF($C47=1,0,IF($C47=2,OFFSET(F47,-1,0)+1,OFFSET(F47,-1,0))) -> 3 | G47: =IF(AND($C47<=2,$C47<>0),0,IF($C47=3,OFFSET(G47,-1,0)+1,OFFSET(G47,-1,0))) -> 0 | H47: =IF(AND($C47<=3,$C47<>0),0,IF($C47=4,OFFSET(H47,-1,0)+1,OFFSET(H47,-1,0))) -> 0 | I47: =IF(AND($C47<=4,$C47<>0),0,IF(AND($C47="S",$Y47>0),OFFSET(I47,-1,0)+1,OFFSET(I47,-1,0))) -> 0 | J47: 0 | K47: 0 | L47: =IF(OR(Y47>0,$C47=1),"F","") ->  | M47: Serviço | N47: =CHOOSE(1+LOG(1+2*(C47=1)+4*(C47=2)+8*(C47=3)+16*(C47=4)+32*(C47="S"),2),"","Nível 1","Nível 2","Nível 3","Nível 4","Serviço") -> Serviço | O47: 2.3.0.0.2. | P47: AGETOP | Q47: 60010 | R47: VERGA/CONTRAVERGA EM CONCRETO ARMADO FCK = 20 MPA | S47: m3 | T47: 0.05 | U47: 1 | V47: 0.05
A48: 2 | B48: 2 | C48: 2 | D48: 2 | E48: 2 | F48: 4 | G48: 0 | H48: 0 | I48: 0 | J48: 25 | K48: 2 | M48: Nível 2 | N48: Nível 2 | O48: 2.4. | R48: ALVENARIAS E DIVISÓRIAS | S48: - | U48: 1 | V48: -
A49: S | B49: 2 | C49: S | D49: 0 | E49: 2 | F49: 4 | G49: 0 | H49: 0 | I49: 0 | J49: 0 | K49: 0 | M49: Serviço | N49: Serviço | O49: 2.4.0.0.1. | P49: AGETOP | Q49: 100201 | R49: ALVENARIA DE TIJOLO FURADO 1/2 VEZ - 9 x 19 x 19 - ARG. (1CALH:4ARML+100KG DE CI/M3) | S49: m2 | T49: 29.2 | U49: 1 | V49: 29.2
A50: 2 | B50: 2 | C50: 2 | D50: 4 | E50: 2 | F50: 5 | G50: 0 | H50: 0 | I50: 0 | J50: 23 | K50: 4 | M50: Nível 2 | N50: Nível 2 | O50: 2.5. | R50: ESQUADRIAS METÁLICAS | S50: - | U50: 1 | V50: -
A51: S | B51: 2 | C51: S | D51: 0 | E51: 2 | F51: 5 | G51: 0 | H51: 0 | I51: 0 | J51: 0 | K51: 0 | M51: Serviço | N51: Serviço | O51: 2.5.0.0.1. | P51: AGETOP | Q51: 180380 | R51: ESQ. MAXIMO AR CHAPA/VIDRO J4 C/FERRAGENS | S51: m2 | T51: 1 | U51: 1 | V51: 1
A52: S | B52: 2 | C52: S | D52: 0 | E52: 2 | F52: 5 | G52: 0 | H52: 0 | I52: 0 | J52: =IF(OR($C52="S",$C52=0),0,MATCH(0,OFFSET($D52,1,$C52,ROW($C$328)-ROW($C52)),0)) -> 0 | K52: =IF(OR($C52="S",$C52=0),0,MATCH(OFFSET($D52,0,$C52)+1,OFFSET($D52,1,$C52,ROW($C$328)-ROW($C52)),0)) -> 0 | M52: Serviço | N52: Serviço | O52: 2.5.0.0.2. | P52: AGETOP | Q52: 180501 | R52: PORTA DE ABRIR EM CHAPA PF-1 C/FERRAGENS | S52: m2 | T52: 7.14 | U52: 1 | V52: 7.14
A53: S | B53: 2 | C53: S | D53: 0 | E53: 2 | F53: 5 | G53: 0 | H53: 0 | I53: 0 | J53: 0 | K53: 0 | M53: Serviço | N53: Serviço | O53: 2.5.0.0.3. | P53: AGETOP | Q53: 180509 | R53: PORTA ABRIR CH.P/WC PF-10 C/FERRAGENS | S53: m2 | T53: 7.56 | U53: 1 | V53: 7.56
A54: 2 | B54: 2 | C54: 2 | D54: 2 | E54: 2 | F54: 6 | G54: 0 | H54: 0 | I54: 0 | J54: 19 | K54: 2 | M54: Nível 2 | N54: Nível 2 | O54: 2.6. | R54: VIDROS | S54: - | U54: 1 | V54: -
A55: S | B55: 2 | C55: S | D55: 0 | E55: 2 | F55: 6 | G55: 0 | H55: 0 | I55: 0 | J55: 0 | K55: 0 | M55: Serviço | N55: Serviço | O55: 2.6.0.0.1. | P55: AGETOP | Q55: 190102 | R55: VIDRO LISO 4 MM - COLOCADO | S55: m2 | T55: 1 | U55: 1 | V55: 1
A56: 2 | B56: 2 | C56: 2 | D56: 5 | E56: 2 | F56: 7 | G56: 0 | H56: 0 | I56: 0 | J56: 17 | K56: 5 | M56: Nível 2 | N56: Nível 2 | O56: 2.7. | R56: REVESTIMENTO DE PAREDE | S56: - | U56: 1 | V56: -
A57: S | B57: 2 | C57: S | D57: 0 | E57: 2 | F57: 7 | G57: 0 | H57: 0 | I57: 0 | J57: 0 | K57: 0 | M57: Serviço | N57: Serviço | O57: 2.7.0.0.1. | P57: SINAPI | Q57: 87553 | R57: EMBOÇO, PARA RECEBIMENTO DE CERÂMICA, EM ARGAMASSA TRAÇO 1:2:8, PREPARO MECÂNICO COM BETONEIRA 400L, APLICADO MANUALMENTE EM FACES INTERNAS DE PAREDES, PARA AMBIENTE COM ÁREA MAIOR QUE 10M2, ESPESSURA DE 10MM, COM EXECUÇÃO DE TALISCAS. AF_06/2014 | S57: M2 | T57: 44.2 | U57: 1 | V57: 44.2
A58: S | B58: 2 | C58: S | D58: 0 | E58: 2 | F58: 7 | G58: 0 | H58: 0 | I58: 0 | J58: 0 | K58: 0 | M58: Serviço | N58: Serviço | O58: 2.7.0.0.2. | P58: AGETOP | Q58: 200101 | R58: CHAPISCO COMUM | S58: m2 | T58: 58.4 | U58: 1 | V58: 58.4
A59: S | B59: 2 | C59: S | D59: 0 | E59: 2 | F59: 7 | G59: 0 | H59: 0 | I59: 0 | J59: 0 | K59: 0 | M59: Serviço | N59: Serviço | O59: 2.7.0.0.3. | P59: SINAPI | Q59: 87547 | R59: MASSA ÚNICA, PARA RECEBIMENTO DE PINTURA, EM ARGAMASSA TRAÇO 1:2:8, PREPARO MECÂNICO COM BETONEIRA 400L, APLICADA MANUALMENTE EM FACES INTERNAS DE PAREDES, ESPESSURA DE 10MM, COM EXECUÇÃO DE TALISCAS. AF_06/2014 | S59: M2 | T59: 17 | U59: 1 | V59: 17
A60: S | B60: 2 | C60: S | D60: 0 | E60: 2 | F60: 7 | G60: 0 | H60: 0 | I60: 0 | J60: 0 | K60: 0 | M60: Serviço | N60: Serviço | O60: 2.7.0.0.4. | P60: SINAPI | Q60: 87273 | R60: REVESTIMENTO CERÂMICO PARA PAREDES INTERNAS COM PLACAS TIPO ESMALTADA EXTRA DE DIMENSÕES 33X45 CM APLICADAS EM AMBIENTES DE ÁREA MAIOR QUE 5 M² NA ALTURA INTEIRA DAS PAREDES. AF_06/2014 | S60: M2 | T60: 104.8 | U60: 1 | V60: 104.8
A61: 2 | B61: 2 | C61: 2 | D61: 2 | E61: 2 | F61: 8 | G61: 0 | H61: 0 | I61: 0 | J61: 12 | K61: 2 | M61: Nível 2 | N61: Nível 2 | O61: 2.8. | R61: FORROS | S61: - | U61: 1 | V61: -
A62: S | B62: 2 | C62: S | D62: 0 | E62: 2 | F62: 8 | G62: 0 | H62: 0 | I62: 0 | J62: 0 | K62: 0 | M62: Serviço | N62: Serviço | O62: 2.8.0.0.1. | P62: AGETOP | Q62: 210460 | R62: FORRO DE PVC COM ESTRUTURA EM METALON PINTADA COM TINTA ALQUÍDICA D.F. | S62: m2 | T62: 27.47 | U62: 1 | V62: 27.47
A63: 2 | B63: 2 | C63: 2 | D63: 2 | E63: 2 | F63: 9 | G63: 0 | H63: 0 | I63: 0 | J63: 10 | K63: 2 | M63: Nível 2 | N63: Nível 2 | O63: 2.9. | P63: SINAPI | R63: REVESTIMENTO DE PISO | S63: - | U63: 1 | V63: -
A64: S | B64: 2 | C64: S | D64: 0 | E64: 2 | F64: 9 | G64: 0 | H64: 0 | I64: 0 | J64: 0 | K64: 0 | M64: Serviço | N64: Serviço | O64: 2.9.0.0.1. | P64: SINAPI | Q64: 87251 | R64: REVESTIMENTO CERÂMICO PARA PISO COM PLACAS TIPO ESMALTADA EXTRA DE DIMENSÕES 45X45 CM APLICADA EM AMBIENTES DE ÁREA MAIOR QUE 10 M2. AF_06/2014 | S64: M2 | T64: 42.78 | U64: 1 | V64: 42.78
A65: 2 | B65: 2 | C65: 2 | D65: 3 | E65: 2 | F65: 10 | G65: 0 | H65: 0 | I65: 0 | J65: 8 | K65: 3 | M65: Nível 2 | N65: Nível 2 | O65: 2.10. | R65: FERRAGENS | S65: - | U65: 1 | V65: -
A66: S | B66: 2 | C66: S | D66: 0 | E66: 2 | F66: 10 | G66: 0 | H66: 0 | I66: 0 | J66: 0 | K66: 0 | M66: Serviço | N66: Serviço | O66: 2.10.0.0.1. | P66: AGETOP | Q66: 230174 | R66: BARRA DE APOIO EM AÇO INOX - 40 CM | S66: un | T66: 3 | U66: 1 | V66: 3
A67: S | B67: 2 | C67: S | D67: 0 | E67: 2 | F67: 10 | G67: 0 | H67: 0 | I67: 0 | J67: 0 | K67: 0 | M67: Serviço | N67: Serviço | O67: 2.10.0.0.2. | P67: AGETOP | Q67: 230176 | R67: BARRA DE APOIO EM AÇO INOX - 80 CM | S67: un | T67: 3 | U67: 1 | V67: 3
A68: 2 | B68: 2 | C68: 2 | D68: 3 | E68: 2 | F68: 11 | G68: 0 | H68: 0 | I68: 0 | J68: 5 | K68: 3 | M68: Nível 2 | N68: Nível 2 | O68: 2.11. | R68: PINTURA | S68: - | U68: 1 | V68: -
A69: S | B69: 2 | C69: S | D69: 0 | E69: 2 | F69: 11 | G69: 0 | H69: 0 | I69: 0 | J69: 0 | K69: 0 | M69: Serviço | N69: Serviço | O69: 2.11.0.0.1. | P69: AGETOP | Q69: 261300 | R69: EMASSAMENTO COM MASSA PVA DUAS DEMAOS | S69: m2 | T69: 17 | U69: 1 | V69: 17
A70: S | B70: 2 | C70: S | D70: 0 | E70: 2 | F70: 11 | G70: 0 | H70: 0 | I70: 0 | J70: 0 | K70: 0 | M70: Serviço | N70: Serviço | O70: 2.11.0.0.2. | P70: AGETOP | Q70: 261602 | R70: PINT.ESMALTE/ESQUAD.FERRO C/FUNDO ANTICOR. | S70: m2 | T70: 46.1 | U70: 1 | V70: 46.1
A71: 2 | B71: 2 | C71: 2 | D71: 2 | E71: 2 | F71: 12 | G71: 0 | H71: 0 | I71: 0 | J71: 2 | M71: Nível 2 | N71: Nível 2 | O71: 2.12. | P71: SINAPI | R71: DIVERSOS | S71: - | U71: 1 | V71: -
A72: S | B72: 2 | C72: S | D72: 0 | E72: 2 | F72: 12 | G72: 0 | H72: 0 | I72: 0 | J72: 0 | K72: 0 | M72: Serviço | N72: Serviço | O72: 2.12.0.0.1. | P72: AGETOP | Q72: 271608 | R72: BANCADA DE GRANITO C/ESPELHO | S72: m2 | T72: 2.94 | U72: 1 | V72: 2.94
A73: 1 | B73: 1 | C73: 1 | D73: 16 | E73: 3 | F73: 0 | G73: 0 | H73: 0 | I73: 0 | J73: 255 | K73: 16 | L73: F | M73: Nível 1 | N73: Nível 1 | O73: 3. | P73: SINAPI | R73: REFORMA DO GALPÃO UTILIZADO | S73: UN | T73: 1 | U73: 1 | V73: 1
A74: 2 | B74: 2 | C74: 2 | D74: 4 | E74: 3 | F74: 1 | G74: 0 | H74: 0 | I74: 0 | J74: 15 | K74: 4 | M74: Nível 2 | N74: Nível 2 | O74: 3.1. | P74: SINAPI | R74: SERVIÇOS PRELIMINARES | S74: - | U74: 1 | V74: -
A75: S | B75: 2 | C75: S | D75: 0 | E75: 3 | F75: 1 | G75: 0 | H75: 0 | I75: 0 | J75: 0 | K75: 0 | M75: Serviço | N75: Serviço | O75: 3.1.0.0.1. | P75: AGETOP | Q75: 20102 | R75: DEMOLICAO-COBERTURA TELHA FIBROCIMENTO/FIBRA DE VIDRO/SIMILARES C/ TRANSP. ATÉ CB. E CARGA | S75: m2 | T75: 40 | U75: 1 | V75: 40
A76: S | B76: 2 | C76: S | D76: 0 | E76: 3 | F76: 1 | G76: 0 | H76: 0 | I76: 0 | J76: 0 | K76: 0 | M76: Serviço | N76: Serviço | O76: 3.1.0.0.2. | P76: SINAPI | Q76: 97631 | R76: DEMOLIÇÃO DE ARGAMASSAS, DE FORMA MANUAL, SEM REAPROVEITAMENTO. AF_12/2017 | S76: M2 | T76: 70 | U76: 1 | V76: 70
A77: =CHOOSE(1+LOG(1+2*(ORÇAMENTO.Nivel="Nível 1")+4*(ORÇAMENTO.Nivel="Nível 2")+8*(ORÇAMENTO.Nivel="Nível 3")+16*(ORÇAMENTO.Nivel="Nível 4")+32*(ORÇAMENTO.Nivel="Serviço"),2),0,1,2,3,4,"S") -> S | B77: =IF(OR(C77="s",C77=0),OFFSET(B77,-1,0),C77) -> 2 | C77: =IF(OFFSET(C77,-1,0)="L",1,IF(OFFSET(C77,-1,0)=1,2,IF(OR(A77="s",A77=0),"S",IF(AND(OFFSET(C77,-1,0)=2,A77=4),3,IF(AND(OR(OFFSET(C77,-1,0)="s",OFFSET(C77,-1,0)=0),A77<>"s",A77>OFFSET(B77,-1,0)),OFFSET(B77,-1,0),A77))))) -> S | D77: =IF(OR(C77="S",C77=0),0,IF(ISERROR(K77),J77,SMALL(J77:K77,1))) -> 0 | E77: =IF($C77=1,OFFSET(E77,-1,0)+1,OFFSET(E77,-1,0)) -> 3 | F77: =IF($C77=1,0,IF($C77=2,OFFSET(F77,-1,0)+1,OFFSET(F77,-1,0))) -> 1 | G77: =IF(AND($C77<=2,$C77<>0),0,IF($C77=3,OFFSET(G77,-1,0)+1,OFFSET(G77,-1,0))) -> 0 | H77: =IF(AND($C77<=3,$C77<>0),0,IF($C77=4,OFFSET(H77,-1,0)+1,OFFSET(H77,-1,0))) -> 0 | I77: =IF(AND($C77<=4,$C77<>0),0,IF(AND($C77="S",$Y77>0),OFFSET(I77,-1,0)+1,OFFSET(I77,-1,0))) -> 0 | J77: 0 | K77: 0 | L77: =IF(OR(Y77>0,$C77=1),"F","") ->  | M77: Serviço | N77: =CHOOSE(1+LOG(1+2*(C77=1)+4*(C77=2)+8*(C77=3)+16*(C77=4)+32*(C77="S"),2),"","Nível 1","Nível 2","Nível 3","Nível 4","Serviço") -> Serviço | O77: 3.1.0.0.3. | P77: SINAPI | Q77: 97640 | R77: REMOÇÃO DE FORROS DE DRYWALL, PVC E FIBROMINERAL, DE FORMA MANUAL, SEM REAPROVEITAMENTO. AF_12/2017 | S77: M2 | T77: 262.73 | U77: 1 | V77: 262.73
A78: 2 | B78: 2 | C78: 2 | D78: 3 | E78: 3 | F78: 2 | G78: 0 | H78: 0 | I78: 0 | J78: 11 | K78: 3 | M78: Nível 2 | N78: Nível 2 | O78: 3.2. | P78: AGETOP | R78: TRANSPORTES | S78: - | U78: 1 | V78: -
A79: S | B79: 2 | C79: S | D79: 0 | E79: 3 | F79: 2 | G79: 0 | H79: 0 | I79: 0 | J79: 0 | K79: 0 | M79: Serviço | N79: Serviço | O79: 3.2.0.0.1. | P79: SINAPI | Q79: 72900 | R79: TRANSPORTE DE ENTULHO COM CAMINHAO BASCULANTE 6 M3, RODOVIA PAVIMENTADA, DMT 0,5 A 1,0 KM | S79: M3 | T79: 3.72 | U79: 1 | V79: 3.72
A80: S | B80: 2 | C80: S | D80: 0 | E80: 3 | F80: 2 | G80: 0 | H80: 0 | I80: 0 | J80: 0 | K80: 0 | M80: Serviço | N80: Serviço | O80: 3.2.0.0.2. | P80: SINAPI | Q80: 72897 | R80: CARGA MANUAL DE ENTULHO EM CAMINHAO BASCULANTE 6 M3 | S80: M3 | T80: 3.72 | U80: 1 | V80: 3.72
A81: 2 | B81: 2 | C81: 2 | D81: 2 | E81: 3 | F81: 3 | G81: 0 | H81: 0 | I81: 0 | J81: 8 | K81: 2 | M81: Nível 2 | N81: Nível 2 | O81: 3.3. | P81: SINAPI | R81: COBERTURAS | S81: - | U81: 1 | V81: -
A82: S | B82: 2 | C82: S | D82: 0 | E82: 3 | F82: 3 | G82: 0 | H82: 0 | I82: 0 | J82: 0 | K82: 0 | M82: Serviço | N82: Serviço | O82: 3.3.0.0.1. | P82: AGETOP | Q82: 160501 | R82: COBERTURA COM TELHA ONDULADA OU EQUIV. | S82: m2 | T82: 40 | U82: 1 | V82: 40
A83: 2 | B83: 2 | C83: 2 | D83: 2 | E83: 3 | F83: 4 | G83: 0 | H83: 0 | I83: 0 | J83: 6 | K83: 2 | M83: Nível 2 | N83: Nível 2 | O83: 3.4. | R83: REVESTIMENTO DE PAREDE | S83: - | U83: 1 | V83: -
A84: S | B84: 2 | C84: S | D84: 0 | E84: 3 | F84: 4 | G84: 0 | H84: 0 | I84: 0 | J84: 0 | K84: 0 | M84: Serviço | N84: Serviço | O84: 3.4.0.0.1. | P84: SINAPI | Q84: 87547 | R84: MASSA ÚNICA, PARA RECEBIMENTO DE PINTURA, EM ARGAMASSA TRAÇO 1:2:8, PREPARO MECÂNICO COM BETONEIRA 400L, APLICADA MANUALMENTE EM FACES INTERNAS DE PAREDES, ESPESSURA DE 10MM, COM EXECUÇÃO DE TALISCAS. AF_06/2014 | S84: M2 | T84: 70 | U84: 1 | V84: 70
A85: 2 | B85: 2 | C85: 2 | D85: 2 | E85: 3 | F85: 5 | G85: 0 | H85: 0 | I85: 0 | J85: =IF(OR($C85="S",$C85=0),0,MATCH(0,OFFSET($D85,1,$C85,ROW($C$328)-ROW($C85)),0)) -> 4 | K85: =IF(OR($C85="S",$C85=0),0,MATCH(OFFSET($D85,0,$C85)+1,OFFSET($D85,1,$C85,ROW($C$328)-ROW($C85)),0)) -> 2 | M85: Nível 2 | N85: Nível 2 | O85: 3.5. | P85: SINAPI | R85: FORROS | S85: - | U85: 1 | V85: -
A86: S | B86: 2 | C86: S | D86: 0 | E86: 3 | F86: 5 | G86: 0 | H86: 0 | I86: 0 | J86: 0 | K86: 0 | M86: Serviço | N86: Serviço | O86: 3.5.0.0.1. | P86: AGETOP | Q86: 210461 | R86: FORRO DE PVC SEM ESTRUTURA DE METALON (COM REPINTURA DA ESTRUTURA COM TINTA ALQUÍDICA D.F.) | S86: m2 | T86: 262.73 | U86: 1 | V86: 262.73
A87: 2 | B87: 2 | C87: 2 | D87: 2 | E87: 3 | F87: 6 | G87: 0 | H87: 0 | I87: 0 | J87: =IF(OR($C87="S",$C87=0),0,MATCH(0,OFFSET($D87,1,$C87,ROW($C$328)-ROW($C87)),0)) -> 2 | K87: =IF(OR($C87="S",$C87=0),0,MATCH(OFFSET($D87,0,$C87)+1,OFFSET($D87,1,$C87,ROW($C$328)-ROW($C87)),0)) -> 77 | M87: Nível 2 | N87: Nível 2 | O87: 3.6. | R87: PINTURA | S87: - | T87: 20 | U87: 1 | V87: 20
A88: S | B88: 2 | C88: S | D88: 0 | E88: 3 | F88: 6 | G88: 0 | H88: 0 | I88: 0 | J88: 0 | K88: 0 | M88: Serviço | N88: Serviço | O88: 3.6.0.0.1. | P88: AGETOP | Q88: 261300 | R88: EMASSAMENTO COM MASSA PVA DUAS DEMAOS | S88: m2 | T88: 70 | U88: 1 | V88: 70
A89: 1 | B89: 1 | C89: 1 | D89: 18 | E89: 4 | F89: 0 | G89: 0 | H89: 0 | I89: 0 | J89: 239 | K89: 18 | L89: F | M89: Nível 1 | N89: Nível 1 | O89: 4. | P89: SINAPI | R89: REFORMA DA COZINHA | S89: UN | T89: 1 | U89: 1 | V89: 1
A90: 2 | B90: 2 | C90: 2 | D90: 5 | E90: 4 | F90: 1 | G90: 0 | H90: 0 | I90: 0 | J90: 17 | K90: 5 | M90: Nível 2 | N90: Nível 2 | O90: 4.1. | P90: SINAPI | R90: SERVIÇOS PRELIMINARES | S90: - | U90: 1 | V90: -
A91: S | B91: 2 | C91: S | D91: 0 | E91: 4 | F91: 1 | G91: 0 | H91: 0 | I91: 0 | J91: 0 | K91: 0 | M91: Serviço | N91: Serviço | O91: 4.1.0.0.1. | P91: AGETOP | Q91: 20111 | R91: DEM.PISO CERAM.SOBRE LASTRO CONC.C/TR.CB.E CARGA | S91: m2 | T91: 35.95 | U91: 1 | V91: 35.95
A92: S | B92: 2 | C92: S | D92: 0 | E92: 4 | F92: 1 | G92: 0 | H92: 0 | I92: 0 | J92: 0 | K92: 0 | M92: Serviço | N92: Serviço | O92: 4.1.0.0.2. | P92: AGETOP | Q92: 20115 | R92: DEMOLIÇÃO DE REVESTIMENTOS COM AZULEJOS C/TRANSP.ATE CB. E CARGA | S92: m2 | T92: 22.65 | U92: 1 | V92: 22.65
A93: S | B93: 2 | C93: S | D93: 0 | E93: 4 | F93: 1 | G93: 0 | H93: 0 | I93: 0 | J93: 0 | K93: 0 | M93: Serviço | N93: Serviço | O93: 4.1.0.0.3. | P93: AGETOP | Q93: 20139 | R93: DEMOLIÇAO DE BANCADAS C/ TRANSP. ATÉ CB. E CARGA | S93: m2 | T93: 2.85 | U93: 1 | V93: 2.85
A94: =CHOOSE(1+LOG(1+2*(ORÇAMENTO.Nivel="Nível 1")+4*(ORÇAMENTO.Nivel="Nível 2")+8*(ORÇAMENTO.Nivel="Nível 3")+16*(ORÇAMENTO.Nivel="Nível 4")+32*(ORÇAMENTO.Nivel="Serviço"),2),0,1,2,3,4,"S") -> S | B94: =IF(OR(C94="s",C94=0),OFFSET(B94,-1,0),C94) -> 2 | C94: =IF(OFFSET(C94,-1,0)="L",1,IF(OFFSET(C94,-1,0)=1,2,IF(OR(A94="s",A94=0),"S",IF(AND(OFFSET(C94,-1,0)=2,A94=4),3,IF(AND(OR(OFFSET(C94,-1,0)="s",OFFSET(C94,-1,0)=0),A94<>"s",A94>OFFSET(B94,-1,0)),OFFSET(B94,-1,0),A94))))) -> S | D94: =IF(OR(C94="S",C94=0),0,IF(ISERROR(K94),J94,SMALL(J94:K94,1))) -> 0 | E94: =IF($C94=1,OFFSET(E94,-1,0)+1,OFFSET(E94,-1,0)) -> 4 | F94: =IF($C94=1,0,IF($C94=2,OFFSET(F94,-1,0)+1,OFFSET(F94,-1,0))) -> 1 | G94: =IF(AND($C94<=2,$C94<>0),0,IF($C94=3,OFFSET(G94,-1,0)+1,OFFSET(G94,-1,0))) -> 0 | H94: =IF(AND($C94<=3,$C94<>0),0,IF($C94=4,OFFSET(H94,-1,0)+1,OFFSET(H94,-1,0))) -> 0 | I94: =IF(AND($C94<=4,$C94<>0),0,IF(AND($C94="S",$Y94>0),OFFSET(I94,-1,0)+1,OFFSET(I94,-1,0))) -> 0 | J94: =IF(OR($C94="S",$C94=0),0,MATCH(0,OFFSET($D94,1,$C94,ROW($C$328)-ROW($C94)),0)) -> 0 | K94: =IF(OR($C94="S",$C94=0),0,MATCH(OFFSET($D94,0,$C94)+1,OFFSET($D94,1,$C94,ROW($C$328)-ROW($C94)),0)) -> 0 | L94: =IF(OR(Y94>0,$C94=1),"F","") ->  | M94: Serviço | N94: =CHOOSE(1+LOG(1+2*(C94=1)+4*(C94=2)+8*(C94=3)+16*(C94=4)+32*(C94="S"),2),"","Nível 1","Nível 2","Nível 3","Nível 4","Serviço") -> Serviço | O94: 4.1.0.0.4. | P94: AGETOP | Q94: 20163 | R94: DEMOLIÇÃO DAS INSTALAÇÕES HIDROSANITÁRIAS E AFINS C/ TRANSP. ATÉ CB. E CARGA | S94: H | T94: 2 | U94: 1 | V94: 2
A95: 2 | B95: 2 | C95: 2 | D95: 3 | E95: 4 | F95: 2 | G95: 0 | H95: 0 | I95: 0 | J95: 12 | K95: 3 | M95: Nível 2 | N95: Nível 2 | O95: 4.2. | P95: AGETOP | R95: TRANSPORTES | S95: - | U95: 1 | V95: -
A96: S | B96: 2 | C96: S | D96: 0 | E96: 4 | F96: 2 | G96: 0 | H96: 0 | I96: 0 | J96: 0 | K96: 0 | M96: Serviço | N96: Serviço | O96: 4.2.0.0.1. | P96: SINAPI | Q96: 72900 | R96: TRANSPORTE DE ENTULHO COM CAMINHAO BASCULANTE 6 M3, RODOVIA PAVIMENTADA, DMT 0,5 A 1,0 KM | S96: M3 | T96: 1.5 | U96: 1 | V96: 1.5
A97: S | B97: 2 | C97: S | D97: 0 | E97: 4 | F97: 2 | G97: 0 | H97: 0 | I97: 0 | J97: 0 | K97: 0 | M97: Serviço | N97: Serviço | O97: 4.2.0.0.2. | P97: SINAPI | Q97: 72897 | R97: CARGA MANUAL DE ENTULHO EM CAMINHAO BASCULANTE 6 M3 | S97: M3 | T97: 1.5 | U97: 1 | V97: 1.5
A98: 2 | B98: 2 | C98: 2 | D98: 3 | E98: 4 | F98: 3 | G98: 0 | H98: 0 | I98: 0 | J98: 9 | K98: 3 | M98: Nível 2 | N98: Nível 2 | O98: 4.3. | P98: SINAPI | R98: ESQUADRIAS METÁLICAS | S98: - | U98: 1 | V98: -
A99: S | B99: 2 | C99: S | D99: 0 | E99: 4 | F99: 3 | G99: 0 | H99: 0 | I99: 0 | J99: 0 | K99: 0 | M99: Serviço | N99: Serviço | O99: 4.3.0.0.1. | P99: COMPOSIÇÃO | Q99: COMP 027_SEE | R99: TELA MOSQUITEIRA EM NYLON COM ESTRUTURA DE ALUMÍNIO, COM FORNECIMENTO DE MÃO DE OBRA E INSTALAÇÃO | S99: M2 | T99: 8.88 | U99: 1 | V99: 8.88
A100: S | B100: 2 | C100: S | D100: 0 | E100: 4 | F100: 3 | G100: 0 | H100: 0 | I100: 0 | J100: 0 | K100: 0 | M100: Serviço | N100: Serviço | O100: 4.3.0.0.2. | P100: COMPOSIÇÃO | Q100: COMP 575_SEE | R100: MOLA AEREA FECHA PORTA, PARA PORTAS COM LARGURA ATE 95 CM | S100: UN | T100: 2 | U100: 1 | V100: 2
A101: 2 | B101: 2 | C101: 2 | D101: 2 | E101: 4 | F101: 4 | G101: 0 | H101: 0 | I101: 0 | J101: 6 | K101: 2 | M101: Nível 2 | N101: Nível 2 | O101: 4.4. | R101: REVESTIMENTO DE PAREDE | S101: - | U101: 1 | V101: -
A102: S | B102: 2 | C102: S | D102: 0 | E102: 4 | F102: 4 | G102: 0 | H102: 0 | I102: 0 | J102: 0 | K102: 0 | M102: Serviço | N102: Serviço | O102: 4.4.0.0.1. | P102: SINAPI | Q102: 87273 | R102: REVESTIMENTO CERÂMICO PARA PAREDES INTERNAS COM PLACAS TIPO ESMALTADA EXTRA DE DIMENSÕES 33X45 CM APLICADAS EM AMBIENTES DE ÁREA MAIOR QUE 5 M² NA ALTURA INTEIRA DAS PAREDES. AF_06/2014 | S102: M2 | T102: 22.65 | U102: 1 | V102: 22.65
A103: 2 | B103: 2 | C103: 2 | D103: 2 | E103: 4 | F103: 5 | G103: 0 | H103: 0 | I103: 0 | J103: 4 | K103: 2 | M103: Nível 2 | N103: Nível 2 | O103: 4.5. | R103: REVESTIMENTO DE PISO | S103: - | U103: 1 | V103: -
A104: S | B104: 2 | C104: S | D104: 0 | E104: 4 | F104: 5 | G104: 0 | H104: 0 | I104: 0 | J104: 0 | K104: 0 | M104: Serviço | N104: Serviço | O104: 4.5.0.0.1. | P104: SINAPI | Q104: 87251 | R104: REVESTIMENTO CERÂMICO PARA PISO COM PLACAS TIPO ESMALTADA EXTRA DE DIMENSÕES 45X45 CM APLICADA EM AMBIENTES DE ÁREA MAIOR QUE 10 M2. AF_06/2014 | S104: M2 | T104: 35.95 | U104: 1 | V104: 35.95
A105: 2 | B105: 2 | C105: 2 | D105: 2 | E105: 4 | F105: 6 | G105: 0 | H105: 0 | I105: 0 | J105: 2 | K105: 59 | M105: Nível 2 | N105: Nível 2 | O105: 4.6. | R105: DIVERSOS | S105: - | U105: 1 | V105: -
A106: S | B106: 2 | C106: S | D106: 0 | E106: 4 | F106: 6 | G106: 0 | H106: 0 | I106: 0 | J106: 0 | K106: 0 | M106: Serviço | N106: Serviço | O106: 4.6.0.0.1. | P106: AGETOP | Q106: 271608 | R106: BANCADA DE GRANITO C/ESPELHO | S106: m2 | T106: 3.92 | U106: 1 | V106: 3.92
A107: 1 | B107: 1 | C107: 1 | D107: 7 | E107: 5 | F107: 0 | G107: 0 | H107: 0 | I107: 0 | J107: 221 | K107: 7 | L107: F | M107: Nível 1 | N107: Nível 1 | O107: 5. | P107: SINAPI | R107: EXECUÇÃO DE GRELHA E SISTEMA DE ESCOAMENTO PLUVIAL | S107: UN | T107: 1 | U107: 1 | V107: 1
A108: 2 | B108: 2 | C108: 2 | D108: 2 | E108: 5 | F108: 1 | G108: 0 | H108: 0 | I108: 0 | J108: 6 | K108: 2 | M108: Nível 2 | N108: Nível 2 | O108: 5.1. | P108: SINAPI | R108: ESQUADRIAS METÁLICAS | S108: - | U108: 1 | V108: -
A109: S | B109: 2 | C109: S | D109: 0 | E109: 5 | F109: 1 | G109: 0 | H109: 0 | I109: 0 | J109: 0 | K109: 0 | M109: Serviço | N109: Serviço | O109: 5.1.0.0.1. | P109: AGETOP | Q109: 180323 | R109: GRELHA PADRÃO GOINFRA DE FERRO CHATO COM BERÇO (ESPAÇAMENTO ENTRE FACES = 1,5CM - NBR 9050 ACESSIBILIDADE) | S109: m2 | T109: 1.86 | U109: 1 | V109: 1.86
A110: 2 | B110: 2 | C110: 2 | D110: 2 | E110: 5 | F110: 2 | G110: 0 | H110: 0 | I110: 0 | J110: 4 | K110: 2 | M110: Nível 2 | N110: Nível 2 | O110: 5.2. | R110: PINTURA | S110: - | U110: 1 | V110: -
A111: S | B111: 2 | C111: S | D111: 0 | E111: 5 | F111: 2 | G111: 0 | H111: 0 | I111: 0 | J111: 0 | K111: 0 | M111: Serviço | N111: Serviço | O111: 5.2.0.0.1. | P111: AGETOP | Q111: 261602 | R111: PINT.ESMALTE/ESQUAD.FERRO C/FUNDO ANTICOR. | S111: m2 | T111: 2.79 | U111: 1 | V111: 2.79
A112: 2 | B112: 2 | C112: 2 | D112: 2 | E112: 5 | F112: 3 | G112: 0 | H112: 0 | I112: 0 | J112: 2 | K112: 33 | M112: Nível 2 | N112: Nível 2 | O112: 5.3. | P112: SINAPI | R112: DIVERSOS | S112: - | U112: 1 | V112: -
A113: S | B113: 2 | C113: S | D113: 0 | E113: 5 | F113: 3 | G113: 0 | H113: 0 | I113: 0 | J113: 0 | K113: 0 | M113: Serviço | N113: Serviço | O113: 5.3.0.0.1. | P113: AGETOP | Q113: 271417 | R113: CANALETA CONCRETO DESEMPENADO 5 CM PD.GOINFRA | S113: m | T113: 6.2 | U113: 1 | V113: 6.2
A114: 1 | B114: 1 | C114: 1 | D114: 10 | E114: 6 | F114: 0 | G114: 0 | H114: 0 | I114: 0 | J114: 214 | K114: 10 | L114: F | M114: Nível 1 | N114: Nível 1 | O114: 6. | P114: SINAPI | R114: PINTURA GERAL DAS EDIFICAÇÕES: | S114: UN | T114: 1 | U114: 1 | V114: 1
A115: 2 | B115: 2 | C115: 2 | D115: 9 | E115: 6 | F115: 1 | G115: 0 | H115: 0 | I115: 0 | J115: 9 | K115: 15 | M115: Nível 2 | N115: Nível 2 | O115: 6.1. | P115: SINAPI | R115: PINTURA | S115: - | U115: 1 | V115: -
A116: S | B116: 2 | C116: S | D116: 0 | E116: 6 | F116: 1 | G116: 0 | H116: 0 | I116: 0 | J116: 0 | K116: 0 | M116: Serviço | N116: Serviço | O116: 6.1.0.0.1. | P116: AGETOP | Q116: 260105 | R116: REMOCAO DE PINTURA ANTIGA A OLEO OU ESMALTE | S116: m2 | T116: 100 | U116: 1 | V116: 100
A117: S | B117: 2 | C117: S | D117: 0 | E117: 6 | F117: 1 | G117: 0 | H117: 0 | I117: 0 | J117: 0 | K117: 0 | M117: Serviço | N117: Serviço | O117: 6.1.0.0.2. | P117: AGETOP | Q117: 261300 | R117: EMASSAMENTO COM MASSA PVA DUAS DEMAOS | S117: m2 | T117: 200 | U117: 1 | V117: 200
A118: S | B118: 2 | C118: S | D118: 0 | E118: 6 | F118: 1 | G118: 0 | H118: 0 | I118: 0 | J118: 0 | K118: 0 | M118: Serviço | N118: Serviço | O118: 6.1.0.0.3. | P118: AGETOP | Q118: 261548 | R118: PINTURA ESMALTE 1 DEMÃO EM PAREDE SEM SELADOR | S118: m2 | T118: 746 | U118: 1 | V118: 746
A119: S | B119: 2 | C119: S | D119: 0 | E119: 6 | F119: 1 | G119: 0 | H119: 0 | I119: 0 | J119: 0 | K119: 0 | M119: Serviço | N119: Serviço | O119: 6.1.0.0.4. | P119: AGETOP | Q119: 260104 | R119: REMOCAO DE PINTURA ANTIGA A LATEX | S119: m2 | T119: 100 | U119: 1 | V119: 100
A120: S | B120: 2 | C120: S | D120: 0 | E120: 6 | F120: 1 | G120: 0 | H120: 0 | I120: 0 | J120: =IF(OR($C120="S",$C120=0),0,MATCH(0,OFFSET($D120,1,$C120,ROW($C$328)-ROW($C120)),0)) -> 0 | K120: =IF(OR($C120="S",$C120=0),0,MATCH(OFFSET($D120,0,$C120)+1,OFFSET($D120,1,$C120,ROW($C$328)-ROW($C120)),0)) -> 0 | M120: Serviço | N120: Serviço | O120: 6.1.0.0.5. | P120: AGETOP | Q120: 261001 | R120: PINTURA LATEX ACRILICO 2 DEMAOS | S120: m2 | T120: 1382 | U120: 1 | V120: 1382
A121: =CHOOSE(1+LOG(1+2*(ORÇAMENTO.Nivel="Nível 1")+4*(ORÇAMENTO.Nivel="Nível 2")+8*(ORÇAMENTO.Nivel="Nível 3")+16*(ORÇAMENTO.Nivel="Nível 4")+32*(ORÇAMENTO.Nivel="Serviço"),2),0,1,2,3,4,"S") -> S | B121: =IF(OR(C121="s",C121=0),OFFSET(B121,-1,0),C121) -> 2 | C121: =IF(OFFSET(C121,-1,0)="L",1,IF(OFFSET(C121,-1,0)=1,2,IF(OR(A121="s",A121=0),"S",IF(AND(OFFSET(C121,-1,0)=2,A121=4),3,IF(AND(OR(OFFSET(C121,-1,0)="s",OFFSET(C121,-1,0)=0),A121<>"s",A121>OFFSET(B121,-1,0)),OFFSET(B121,-1,0),A121))))) -> S | D121: =IF(OR(C121="S",C121=0),0,IF(ISERROR(K121),J121,SMALL(J121:K121,1))) -> 0 | E121: =IF($C121=1,OFFSET(E121,-1,0)+1,OFFSET(E121,-1,0)) -> 6 | F121: =IF($C121=1,0,IF($C121=2,OFFSET(F121,-1,0)+1,OFFSET(F121,-1,0))) -> 1 | G121: =IF(AND($C121<=2,$C121<>0),0,IF($C121=3,OFFSET(G121,-1,0)+1,OFFSET(G121,-1,0))) -> 0 | H121: =IF(AND($C121<=3,$C121<>0),0,IF($C121=4,OFFSET(H121,-1,0)+1,OFFSET(H121,-1,0))) -> 0 | I121: =IF(AND($C121<=4,$C121<>0),0,IF(AND($C121="S",$Y121>0),OFFSET(I121,-1,0)+1,OFFSET(I121,-1,0))) -> 0 | J121: 0 | K121: 0 | L121: =IF(OR(Y121>0,$C121=1),"F","") ->  | M121: Serviço | N121: =CHOOSE(1+LOG(1+2*(C121=1)+4*(C121=2)+8*(C121=3)+16*(C121=4)+32*(C121="S"),2),"","Nível 1","Nível 2","Nível 3","Nível 4","Serviço") -> Serviço | O121: 6.1.0.0.6. | P121: AGETOP | Q121: 260105 | R121: REMOCAO DE PINTURA ANTIGA A OLEO OU ESMALTE | S121: m2 | T121: 440 | U121: 1 | V121: 440
A122: S | B122: 2 | C122: S | D122: 0 | E122: 6 | F122: 1 | G122: 0 | H122: 0 | I122: 0 | J122: 0 | K122: 0 | M122: Serviço | N122: Serviço | O122: 6.1.0.0.7. | P122: AGETOP | Q122: 261602 | R122: PINT.ESMALTE/ESQUAD.FERRO C/FUNDO ANTICOR. | S122: m2 | T122: 440 | U122: 1 | V122: 440
A123: =CHOOSE(1+LOG(1+2*(ORÇAMENTO.Nivel="Nível 1")+4*(ORÇAMENTO.Nivel="Nível 2")+8*(ORÇAMENTO.Nivel="Nível 3")+16*(ORÇAMENTO.Nivel="Nível 4")+32*(ORÇAMENTO.Nivel="Serviço"),2),0,1,2,3,4,"S") -> S | B123: =IF(OR(C123="s",C123=0),OFFSET(B123,-1,0),C123) -> 2 | C123: =IF(OFFSET(C123,-1,0)="L",1,IF(OFFSET(C123,-1,0)=1,2,IF(OR(A123="s",A123=0),"S",IF(AND(OFFSET(C123,-1,0)=2,A123=4),3,IF(AND(OR(OFFSET(C123,-1,0)="s",OFFSET(C123,-1,0)=0),A123<>"s",A123>OFFSET(B123,-1,0)),OFFSET(B123,-1,0),A123))))) -> S | D123: =IF(OR(C123="S",C123=0),0,IF(ISERROR(K123),J123,SMALL(J123:K123,1))) -> 0 | E123: =IF($C123=1,OFFSET(E123,-1,0)+1,OFFSET(E123,-1,0)) -> 6 | F123: =IF($C123=1,0,IF($C123=2,OFFSET(F123,-1,0)+1,OFFSET(F123,-1,0))) -> 1 | G123: =IF(AND($C123<=2,$C123<>0),0,IF($C123=3,OFFSET(G123,-1,0)+1,OFFSET(G123,-1,0))) -> 0 | H123: =IF(AND($C123<=3,$C123<>0),0,IF($C123=4,OFFSET(H123,-1,0)+1,OFFSET(H123,-1,0))) -> 0 | I123: =IF(AND($C123<=4,$C123<>0),0,IF(AND($C123="S",$Y123>0),OFFSET(I123,-1,0)+1,OFFSET(I123,-1,0))) -> 0 | J123: 0 | K123: 0 | L123: =IF(OR(Y123>0,$C123=1),"F","") ->  | M123: Serviço | N123: =CHOOSE(1+LOG(1+2*(C123=1)+4*(C123=2)+8*(C123=3)+16*(C123=4)+32*(C123="S"),2),"","Nível 1","Nível 2","Nível 3","Nível 4","Serviço") -> Serviço | O123: 6.1.0.0.8. | P123: AGETOP | Q123: 261620 | R123: LETREIRO MÉDIO A GRANDE PORTE EM PAREDE FEITO A PINCEL | S123: m2 | T123: 7.2 | U123: 1 | V123: 7.2
A124: 1 | B124: 1 | C124: 1 | D124: 9 | E124: 7 | F124: 0 | G124: 0 | H124: 0 | I124: 0 | J124: 204 | K124: 9 | L124: F | M124: Nível 1 | N124: Nível 1 | O124: 7. | P124: SINAPI | R124: DEMOLIÇÃO DE CAIXA DÁGUA EXISTENTE | S124: UN | T124: 1 | U124: 1 | V124: 1
A125: 2 | B125: 2 | C125: 2 | D125: 5 | E125: 7 | F125: 1 | G125: 0 | H125: 0 | I125: 0 | J125: 8 | K125: 5 | M125: Nível 2 | N125: Nível 2 | O125: 7.1. | P125: SINAPI | R125: SERVIÇOS PRELIMINARES | S125: - | U125: 1 | V125: -
A126: S | B126: 2 | C126: S | D126: 0 | E126: 7 | F126: 1 | G126: 0 | H126: 0 | I126: 0 | J126: 0 | K126: 0 | M126: Serviço | N126: Serviço | O126: 7.1.0.0.1. | P126: AGETOP | Q126: 20106 | R126: RETIRADA DE JANELAS OU PORTAIS C/ TRANSP. ATÉ CB. E CARGA | S126: m2 | T126: 1.47 | U126: 1 | V126: 1.47
A127: S | B127: 2 | C127: S | D127: 0 | E127: 7 | F127: 1 | G127: 0 | H127: 0 | I127: 0 | J127: 0 | K127: 0 | M127: Serviço | N127: Serviço | O127: 7.1.0.0.2. | P127: AGETOP | Q127: 20118 | R127: DEM.ALVEN.TIJOLO S/REAP. C/TR.ATE CB. E CARGA | S127: m3 | T127: 5.36 | U127: 1 | V127: 5.36
A128: S | B128: 2 | C128: S | D128: 0 | E128: 7 | F128: 1 | G128: 0 | H128: 0 | I128: 0 | J128: 0 | K128: 0 | M128: Serviço | N128: Serviço | O128: 7.1.0.0.3. | P128: AGETOP | Q128: 20121 | R128: DEM. MANUAL EM CONCR.SIMPLES C/TR.ATE CB.E CARGA (O.C.) | S128: m3 | T128: 0.23 | U128: 1 | V128: 0.23
A129: S | B129: 2 | C129: S | D129: 0 | E129: 7 | F129: 1 | G129: 0 | H129: 0 | I129: 0 | J129: 0 | K129: 0 | M129: Serviço | N129: Serviço | O129: 7.1.0.0.4. | P129: AGETOP | Q129: 20128 | R129: DEM.PILAR CONC.ARM.MANUAL C/TR.ATE CB.E CARGA(OC) | S129: m3 | T129: 2.68 | U129: 1 | V129: 2.68
A130: 2 | B130: 2 | C130: 2 | D130: 3 | E130: 7 | F130: 2 | G130: 0 | H130: 0 | I130: 0 | J130: 3 | K130: 12 | M130: Nível 2 | N130: Nível 2 | O130: 7.2. | P130: AGETOP | R130: TRANSPORTES | S130: - | U130: 1 | V130: -
A131: S | B131: 2 | C131: S | D131: 0 | E131: 7 | F131: 2 | G131: 0 | H131: 0 | I131: 0 | J131: 0 | K131: 0 | M131: Serviço | N131: Serviço | O131: 7.2.0.0.1. | P131: SINAPI | Q131: 72900 | R131: TRANSPORTE DE ENTULHO COM CAMINHAO BASCULANTE 6 M3, RODOVIA PAVIMENTADA, DMT 0,5 A 1,0 KM | S131: M3 | T131: 8.29 | U131: 1 | V131: 8.29
A132: S | B132: 2 | C132: S | D132: 0 | E132: 7 | F132: 2 | G132: 0 | H132: 0 | I132: 0 | J132: 0 | K132: 0 | M132: Serviço | N132: Serviço | O132: 7.2.0.0.2. | P132: SINAPI | Q132: 72897 | R132: CARGA MANUAL DE ENTULHO EM CAMINHAO BASCULANTE 6 M3 | S132: M3 | T132: 8.29 | U132: 1 | V132: 8.29
A133: =CHOOSE(1+LOG(1+2*(ORÇAMENTO.Nivel="Nível 1")+4*(ORÇAMENTO.Nivel="Nível 2")+8*(ORÇAMENTO.Nivel="Nível 3")+16*(ORÇAMENTO.Nivel="Nível 4")+32*(ORÇAMENTO.Nivel="Serviço"),2),0,1,2,3,4,"S") -> 1 | B133: =IF(OR(C133="s",C133=0),OFFSET(B133,-1,0),C133) -> 1 | C133: =IF(OFFSET(C133,-1,0)="L",1,IF(OFFSET(C133,-1,0)=1,2,IF(OR(A133="s",A133=0),"S",IF(AND(OFFSET(C133,-1,0)=2,A133=4),3,IF(AND(OR(OFFSET(C133,-1,0)="s",OFFSET(C133,-1,0)=0),A133<>"s",A133>OFFSET(B133,-1,0)),OFFSET(B133,-1,0),A133))))) -> 1 | D133: =IF(OR(C133="S",C133=0),0,IF(ISERROR(K133),J133,SMALL(J133:K133,1))) -> 186 | E133: =IF($C133=1,OFFSET(E133,-1,0)+1,OFFSET(E133,-1,0)) -> 8 | F133: =IF($C133=1,0,IF($C133=2,OFFSET(F133,-1,0)+1,OFFSET(F133,-1,0))) -> 0 | G133: =IF(AND($C133<=2,$C133<>0),0,IF($C133=3,OFFSET(G133,-1,0)+1,OFFSET(G133,-1,0))) -> 0 | H133: =IF(AND($C133<=3,$C133<>0),0,IF($C133=4,OFFSET(H133,-1,0)+1,OFFSET(H133,-1,0))) -> 0 | I133: =IF(AND($C133<=4,$C133<>0),0,IF(AND($C133="S",$Y133>0),OFFSET(I133,-1,0)+1,OFFSET(I133,-1,0))) -> 0 | J133: 195 | K133: 186 | L133: =IF(OR(Y133>0,$C133=1),"F","") -> F | M133: Nível 1 | N133: =CHOOSE(1+LOG(1+2*(C133=1)+4*(C133=2)+8*(C133=3)+16*(C133=4)+32*(C133="S"),2),"","Nível 1","Nível 2","Nível 3","Nível 4","Serviço") -> Nível 1 | O133: 8. | P133: AGETOP | R133: PROJETOS COMPLEMENTÁRES | S133: UN | T133: 1 | U133: 1 | V133: 1
A134: 2 | B134: 2 | C134: 2 | D134: 5 | E134: 8 | F134: 1 | G134: 0 | H134: 0 | I134: 0 | J134: 185 | K134: 5 | M134: Nível 2 | N134: Nível 2 | O134: 8.1. | P134: AGETOP | R134: SERVIÇOS PRELIMINARES | S134: - | U134: 1 | V134: -
A135: S | B135: 2 | C135: S | D135: 0 | E135: 8 | F135: 1 | G135: 0 | H135: 0 | I135: 0 | J135: 0 | K135: 0 | M135: Serviço | N135: Serviço | O135: 8.1.0.0.1. | P135: SINAPI | Q135: 97661 | R135: REMOÇÃO DE CABOS ELÉTRICOS, DE FORMA MANUAL, SEM REAPROVEITAMENTO. AF_12/2017 | S135: M | T135: 1000 | U135: 1 | V135: 1000
A136: S | B136: 2 | C136: S | D136: 0 | E136: 8 | F136: 1 | G136: 0 | H136: 0 | I136: 0 | J136: 0 | K136: 0 | M136: Serviço | N136: Serviço | O136: 8.1.0.0.2. | P136: SINAPI | Q136: 97660 | R136: REMOÇÃO DE INTERRUPTORES/TOMADAS ELÉTRICAS, DE FORMA MANUAL, SEM REAPROVEITAMENTO. AF_12/2017 | S136: UN | T136: 70 | U136: 1 | V136: 70
A137: S | B137: 2 | C137: S | D137: 0 | E137: 8 | F137: 1 | G137: 0 | H137: 0 | I137: 0 | J137: 0 | K137: 0 | M137: Serviço | N137: Serviço | O137: 8.1.0.0.3. | P137: SINAPI | Q137: 97665 | R137: REMOÇÃO DE LUMINÁRIAS, DE FORMA MANUAL, SEM REAPROVEITAMENTO. AF_12/2017 | S137: UN | T137: 59 | U137: 1 | V137: 59
A138: S | B138: 2 | C138: S | D138: 0 | E138: 8 | F138: 1 | G138: 0 | H138: 0 | I138: 0 | J138: 0 | K138: 0 | M138: Serviço | N138: Serviço | O138: 8.1.0.0.4. | P138: AGETOP | Q138: 20121 | R138: DEM. MANUAL EM CONCR.SIMPLES C/TR.ATE CB.E CARGA (O.C.) | S138: m3 | T138: 0.01 | U138: 1 | V138: 0.01
A139: 2 | B139: 2 | C139: 2 | D139: 3 | E139: 8 | F139: 2 | G139: 0 | H139: 0 | I139: 0 | J139: 180 | K139: 3 | M139: Nível 2 | N139: Nível 2 | O139: 8.2. | P139: AGETOP | R139: TRANSPORTES | S139: - | U139: 1 | V139: -
A140: S | B140: 2 | C140: S | D140: 0 | E140: 8 | F140: 2 | G140: 0 | H140: 0 | I140: 0 | J140: 0 | K140: 0 | M140: Serviço | N140: Serviço | O140: 8.2.0.0.1. | P140: SINAPI | Q140: 72900 | R140: TRANSPORTE DE ENTULHO COM CAMINHAO BASCULANTE 6 M3, RODOVIA PAVIMENTADA, DMT 0,5 A 1,0 KM | S140: M3 | T140: 6.01 | U140: 1 | V140: 6.01
A141: S | B141: 2 | C141: S | D141: 0 | E141: 8 | F141: 2 | G141: 0 | H141: 0 | I141: 0 | J141: 0 | K141: 0 | M141: Serviço | N141: Serviço | O141: 8.2.0.0.2. | P141: SINAPI | Q141: 72897 | R141: CARGA MANUAL DE ENTULHO EM CAMINHAO BASCULANTE 6 M3 | S141: M3 | T141: 6.01 | U141: 1 | V141: 6.01
A142: 2 | B142: 2 | C142: 2 | D142: 3 | E142: 8 | F142: 3 | G142: 0 | H142: 0 | I142: 0 | J142: 177 | K142: 3 | M142: Nível 2 | N142: Nível 2 | O142: 8.3. | P142: AGETOP | R142: SERVIÇO EM TERRA | S142: - | U142: 1 | V142: -
A143: S | B143: 2 | C143: S | D143: 0 | E143: 8 | F143: 3 | G143: 0 | H143: 0 | I143: 0 | J143: 0 | K143: 0 | M143: Serviço | N143: Serviço | O143: 8.3.0.0.1. | P143: SINAPI | Q143: 93358 | R143: ESCAVAÇÃO MANUAL DE VALA COM PROFUNDIDADE MENOR OU IGUAL A 1,30 M. AF_03/2016 | S143: M3 | T143: 6.29 | U143: 1 | V143: 6.29 | AA143: Referência: AGETOP - 40101
A144: S | B144: 2 | C144: S | D144: 0 | E144: 8 | F144: 3 | G144: 0 | H144: 0 | I144: 0 | J144: =IF(OR($C144="S",$C144=0),0,MATCH(0,OFFSET($D144,1,$C144,ROW($C$328)-ROW($C144)),0)) -> 0 | K144: =IF(OR($C144="S",$C144=0),0,MATCH(OFFSET($D144,0,$C144)+1,OFFSET($D144,1,$C144,ROW($C$328)-ROW($C144)),0)) -> 0 | M144: Serviço | N144: Serviço | O144: 8.3.0.0.2. | P144: SINAPI | Q144: 96995 | R144: REATERRO MANUAL APILOADO COM SOQUETE. AF_10/2017 | S144: M3 | T144: 6.29 | U144: 1 | V144: 6.29 | AA144: Referência: AGETOP - 40902
A145: 2 | B145: 2 | C145: 2 | D145: 2 | E145: 8 | F145: 4 | G145: 0 | H145: 0 | I145: 0 | J145: 174 | K145: 2 | M145: Nível 2 | N145: Nível 2 | O145: 8.4. | R145: REVESTIMENTO DE PISO | S145: - | U145: 1 | V145: -
A146: S | B146: 2 | C146: S | D146: 0 | E146: 8 | F146: 4 | G146: 0 | H146: 0 | I146: 0 | J146: 0 | K146: 0 | M146: Serviço | N146: Serviço | O146: 8.4.0.0.1. | P146: AGETOP | Q146: 220102 | R146: PISO CONCRETO DESEMPENADO ESPESSURA = 5 CM 1:2,5:3,5 | S146: m2 | T146: 5.2 | U146: 1 | V146: 5.2
A147: 2 | B147: 2 | C147: 2 | D147: 5 | E147: 8 | F147: 5 | G147: 0 | H147: 0 | I147: 0 | J147: 172 | K147: 5 | M147: Nível 2 | N147: Nível 2 | O147: 8.5. | P147: SINAPI | R147: FUNDAÇÕES E SONDAGENS | S147: - | U147: 1 | V147: -
A148: 3 | B148: 3 | C148: 3 | D148: 4 | E148: 8 | F148: 5 | G148: 1 | H148: 0 | I148: 0 | J148: 4 | K148: 94 | M148: Nível 3 | N148: Nível 3 | O148: 8.5.1. | P148: SINAPI | R148: ESTACAS | S148: - | U148: 1 | V148: -
A149: S | B149: 3 | C149: S | D149: 0 | E149: 8 | F149: 5 | G149: 1 | H149: 0 | I149: 0 | J149: 0 | K149: 0 | M149: Serviço | N149: Serviço | O149: 8.5.1.0.1. | P149: SINAPI | Q149: 98228 | R149: ESTACA BROCA DE CONCRETO, DIÃMETRO DE 20 CM, PROFUNDIDADE DE ATÉ 3 M, ESCAVAÇÃO MANUAL COM TRADO CONCHA, NÃO ARMADA. AF_03/2018 | S149: M | T149: 8.5 | U149: 1 | V149: 8.5
A150: S | B150: 3 | C150: S | D150: 0 | E150: 8 | F150: 5 | G150: 1 | H150: 0 | I150: 0 | J150: 0 | K150: 0 | M150: Serviço | N150: Serviço | O150: 8.5.1.0.2. | P150: SINAPI | Q150: 95576 | R150: MONTAGEM DE ARMADURA LONGITUDINAL/TRANSVERSAL DE ESTACAS DE SEÇÃO CIRCULAR, DIÂMETRO = 8,0 MM. AF_11/2016 | S150: KG | T150: 11.52 | U150: 1 | V150: 11.52 | AA150: Referência: AGETOP - 52004
A151: S | B151: 3 | C151: S | D151: 0 | E151: 8 | F151: 5 | G151: 1 | H151: 0 | I151: 0 | J151: 0 | K151: 0 | M151: Serviço | N151: Serviço | O151: 8.5.1.0.3. | P151: SINAPI | Q151: 95583 | R151: MONTAGEM DE ARMADURA TRANSVERSAL DE ESTACAS DE SEÇÃO CIRCULAR, DIÂMETRO = 5,0 MM. AF_11/2016 | S151: KG | T151: 2.92 | U151: 1 | V151: 2.92 | AA151: Referência: AGETOP - 52014
A152: 2 | B152: 2 | C152: 2 | D152: 12 | E152: 8 | F152: 6 | G152: 0 | H152: 0 | I152: 0 | J152: 167 | K152: 12 | M152: Nível 2 | N152: Nível 2 | O152: 8.6. | P152: SINAPI | R152: ESTRUTURA | S152: - | U152: 1 | V152: -
A153: 3 | B153: 3 | C153: 3 | D153: 11 | E153: 8 | F153: 6 | G153: 1 | H153: 0 | I153: 0 | J153: 11 | K153: 89 | M153: Nível 3 | N153: Nível 3 | O153: 8.6.1. | P153: SINAPI | R153: VIGAS BALDRAMES | S153: - | U153: 1 | V153: -
A154: S | B154: 3 | C154: S | D154: 0 | E154: 8 | F154: 6 | G154: 1 | H154: 0 | I154: 0 | J154: 0 | K154: 0 | M154: Serviço | N154: Serviço | O154: 8.6.1.0.1. | P154: SINAPI | Q154: 96527 | R154: ESCAVAÇÃO MANUAL DE VALA PARA VIGA BALDRAME, COM PREVISÃO DE FÔRMA. AF_06/2017 | S154: M3 | T154: 0.98 | U154: 1 | V154: 0.98 | AA154: Referência: AGETOP - 40101
A155: S | B155: 3 | C155: S | D155: 0 | E155: 8 | F155: 6 | G155: 1 | H155: 0 | I155: 0 | J155: 0 | K155: 0 | M155: Serviço | N155: Serviço | O155: 8.6.1.0.2. | P155: AGETOP | Q155: 60191 | R155: FORMA DE TABUA CINTA BALDRAME U=8 VEZES | S155: m2 | T155: 4.86 | U155: 1 | V155: 4.86
A156: S | B156: 3 | C156: S | D156: 0 | E156: 8 | F156: 6 | G156: 1 | H156: 0 | I156: 0 | J156: 0 | K156: 0 | M156: Serviço | N156: Serviço | O156: 8.6.1.0.3. | P156: AGETOP | Q156: 41002 | R156: APILOAMENTO | S156: m2 | T156: 4.86 | U156: 1 | V156: 4.86
A157: S | B157: 3 | C157: S | D157: 0 | E157: 8 | F157: 6 | G157: 1 | H157: 0 | I157: 0 | J157: 0 | K157: 0 | M157: Serviço | N157: Serviço | O157: 8.6.1.0.4. | P157: SINAPI | Q157: 94963 | R157: CONCRETO FCK = 15MPA, TRAÇO 1:3,4:3,5 (CIMENTO/ AREIA MÉDIA/ BRITA 1) - PREPARO MECÂNICO COM BETONEIRA 400 L. AF_07/2016 | S157: M3 | T157: 0.34 | U157: 1 | V157: 0.34
A158: S | B158: 3 | C158: S | D158: 0 | E158: 8 | F158: 6 | G158: 1 | H158: 0 | I158: 0 | J158: 0 | K158: 0 | M158: Serviço | N158: Serviço | O158: 8.6.1.0.5. | P158: AGETOP | Q158: 51055 | R158: LANÇAMENTO/APLICAÇÃO/ADENSAMENTO MANUAL DE CONCRETO - (O.C.) | S158: m3 | T158: 0.34 | U158: 1 | V158: 0.34
A159: S | B159: 3 | C159: S | D159: 0 | E159: 8 | F159: 6 | G159: 1 | H159: 0 | I159: 0 | J159: 0 | K159: 0 | M159: Serviço | N159: Serviço | O159: 8.6.1.0.6. | P159: SINAPI | Q159: 96995 | R159: REATERRO MANUAL APILOADO COM SOQUETE. AF_10/2017 | S159: M3 | T159: 0.64 | U159: 1 | V159: 0.64 | AA159: Referência: AGETOP - 40902
A160: S | B160: 3 | C160: S | D160: 0 | E160: 8 | F160: 6 | G160: 1 | H160: 0 | I160: 0 | J160: 0 | K160: 0 | M160: Serviço | N160: Serviço | O160: 8.6.1.0.7. | P160: SINAPI | Q160: 96545 | R160: ARMAÇÃO DE BLOCO, VIGA BALDRAME OU SAPATA UTILIZANDO AÇO CA-50 DE 8 MM - MONTAGEM. AF_06/2017 | S160: KG | T160: 21.2 | U160: 1 | V160: 21.2 | AA160: Referência: AGETOP - 52004
A161: S | B161: 3 | C161: S | D161: 0 | E161: 8 | F161: 6 | G161: 1 | H161: 0 | I161: 0 | J161: 0 | K161: 0 | M161: Serviço | N161: Serviço | O161: 8.6.1.0.8. | P161: SINAPI | Q161: 96543 | R161: ARMAÇÃO DE BLOCO, VIGA BALDRAME E SAPATA UTILIZANDO AÇO CA-60 DE 5 MM - MONTAGEM. AF_06/2017 | S161: KG | T161: 12.6 | U161: 1 | V161: 12.6 | AA161: Referência: AGETOP - 52014
A162: S | B162: 3 | C162: S | D162: 0 | E162: 8 | F162: 6 | G162: 1 | H162: 0 | I162: 0 | J162: 0 | K162: 0 | M162: Serviço | N162: Serviço | O162: 8.6.1.0.9. | P162: AGETOP | Q162: 120902 | R162: IMPERMEABILIZACAO VIGAS BALDRAMES E=2,0 CM | S162: m2 | T162: 6.55 | U162: 1 | V162: 6.55
A163: S | B163: 3 | C163: S | D163: 0 | E163: 8 | F163: 6 | G163: 1 | H163: 0 | I163: 0 | J163: 0 | K163: 0 | M163: Serviço | N163: Serviço | O163: 8.6.1.0.10. | P163: AGETOP | Q163: 50251 | R163: CORPO DE PROVA | S163: Un | T163: 12 | U163: 1 | V163: 12
A164: 2 | B164: 2 | C164: 2 | D164: 52 | E164: 8 | F164: 7 | G164: 0 | H164: 0 | I164: 0 | J164: 155 | K164: 52 | M164: Nível 2 | N164: Nível 2 | O164: 8.7. | R164: INSTALAÇÕES ELÉTRICAS | S164: - | U164: 1 | V164: -
A165: S | B165: 2 | C165: S | D165: 0 | E165: 8 | F165: 7 | G165: 0 | H165: 0 | I165: 0 | J165: 0 | K165: 0 | M165: Serviço | N165: Serviço | O165: 8.7.0.0.1. | P165: AGETOP | Q165: 70351 | R165: BRACADEIRA METALICA TIPO "U" DIAM. 3/4" | S165: Un | T165: 242 | U165: 1 | V165: 242
A166: S | B166: 2 | C166: S | D166: 0 | E166: 8 | F166: 7 | G166: 0 | H166: 0 | I166: 0 | J166: 0 | K166: 0 | M166: Serviço | N166: Serviço | O166: 8.7.0.0.2. | P166: AGETOP | Q166: 70352 | R166: BRACADEIRA METALICA TIPO "U" DIAM. 1" | S166: Un | T166: 15 | U166: 1 | V166: 15
A167: S | B167: 2 | C167: S | D167: 0 | E167: 8 | F167: 7 | G167: 0 | H167: 0 | I167: 0 | J167: 0 | K167: 0 | M167: Serviço | N167: Serviço | O167: 8.7.0.0.3. | P167: AGETOP | Q167: 70354 | R167: BRACADEIRA METALICA TIPO "U" DIAM. 1.1/2" | S167: Un | T167: 36 | U167: 1 | V167: 36
A168: S | B168: 2 | C168: S | D168: 0 | E168: 8 | F168: 7 | G168: 0 | H168: 0 | I168: 0 | J168: 0 | K168: 0 | M168: Serviço | N168: Serviço | O168: 8.7.0.0.4. | P168: AGETOP | Q168: 70355 | R168: BRACADEIRA METALICA TIPO "U" DIAM. 2" | S168: Un | T168: 2 | U168: 1 | V168: 2
A169: S | B169: 2 | C169: S | D169: 0 | E169: 8 | F169: 7 | G169: 0 | H169: 0 | I169: 0 | J169: 0 | K169: 0 | M169: Serviço | N169: Serviço | O169: 8.7.0.0.5. | P169: AGETOP | Q169: 70421 | R169: BUCHA E ARRUELA METALICA DIAM. 3/4" | S169: PR | T169: 4 | U169: 1 | V169: 4
A170: S | B170: 2 | C170: S | D170: 0 | E170: 8 | F170: 7 | G170: 0 | H170: 0 | I170: 0 | J170: 0 | K170: 0 | M170: Serviço | N170: Serviço | O170: 8.7.0.0.6. | P170: AGETOP | Q170: 70422 | R170: BUCHA E ARRUELA METALICA DIAM. 1" | S170: PR | T170: 4 | U170: 1 | V170: 4
A171: S | B171: 2 | C171: S | D171: 0 | E171: 8 | F171: 7 | G171: 0 | H171: 0 | I171: 0 | J171: 0 | K171: 0 | M171: Serviço | N171: Serviço | O171: 8.7.0.0.7. | P171: AGETOP | Q171: 70424 | R171: BUCHA E ARRUELA METALICA DIAM. 1.1/2" | S171: PR | T171: 4 | U171: 1 | V171: 4
A172: S | B172: 2 | C172: S | D172: 0 | E172: 8 | F172: 7 | G172: 0 | H172: 0 | I172: 0 | J172: 0 | K172: 0 | M172: Serviço | N172: Serviço | O172: 8.7.0.0.8. | P172: AGETOP | Q172: 70425 | R172: BUCHA E ARRUELA METALICA DIAM. 2" | S172: PR | T172: 2 | U172: 1 | V172: 2
A173: S | B173: 2 | C173: S | D173: 0 | E173: 8 | F173: 7 | G173: 0 | H173: 0 | I173: 0 | J173: 0 | K173: 0 | M173: Serviço | N173: Serviço | O173: 8.7.0.0.9. | P173: AGETOP | Q173: 70565 | R173: CABO ISOLADO PVC 750 V. No. 6 MM2 | S173: m | T173: 200 | U173: 1 | V173: 200
A174: S | B174: 2 | C174: S | D174: 0 | E174: 8 | F174: 7 | G174: 0 | H174: 0 | I174: 0 | J174: 0 | K174: 0 | M174: Serviço | N174: Serviço | O174: 8.7.0.0.10. | P174: AGETOP | Q174: 70584 | R174: CABO PVC (70ºC) 1 KV No. 10 MM2 | S174: M | T174: 200 | U174: 1 | V174: 200
A175: S | B175: 2 | C175: S | D175: 0 | E175: 8 | F175: 7 | G175: 0 | H175: 0 | I175: 0 | J175: 0 | K175: 0 | M175: Serviço | N175: Serviço | O175: 8.7.0.0.11. | P175: SINAPI | Q175: 92984 | R175: CABO DE COBRE FLEXÍVEL ISOLADO, 25 MM², ANTI-CHAMA 0,6/1,0 KV, PARA DISTRIBUIÇÃO - FORNECIMENTO E INSTALAÇÃO. AF_12/2015 | S175: M | T175: 54 | U175: 1 | V175: 54 | AA175: Referência: AGETOP - 70511
A176: S | B176: 2 | C176: S | D176: 0 | E176: 8 | F176: 7 | G176: 0 | H176: 0 | I176: 0 | J176: 0 | K176: 0 | M176: Serviço | N176: Serviço | O176: 8.7.0.0.12. | P176: SINAPI | Q176: 96971 | R176: CORDOALHA DE COBRE NU 16 MM², NÃO ENTERRADA, COM ISOLADOR - FORNECIMENTO E INSTALAÇÃO. AF_12/2017 | S176: M | T176: 50 | U176: 1 | V176: 50 | AA176: Referência: AGETOP - 70541
A177: S | B177: 2 | C177: S | D177: 0 | E177: 8 | F177: 7 | G177: 0 | H177: 0 | I177: 0 | J177: 0 | K177: 0 | M177: Serviço | N177: Serviço | O177: 8.7.0.0.13. | P177: AGETOP | Q177: 70585 | R177: CABO PVC (70ºC) 1 KV No. 16 MM2 | S177: M | T177: 15 | U177: 1 | V177: 15
A178: S | B178: 2 | C178: S | D178: 0 | E178: 8 | F178: 7 | G178: 0 | H178: 0 | I178: 0 | J178: 0 | K178: 0 | M178: Serviço | N178: Serviço | O178: 8.7.0.0.14. | P178: SINAPI | Q178: 91927 | R178: CABO DE COBRE FLEXÍVEL ISOLADO, 2,5 MM², ANTI-CHAMA 0,6/1,0 KV, PARA CIRCUITOS TERMINAIS - FORNECIMENTO E INSTALAÇÃO. AF_12/2015 | S178: M | T178: 1300 | U178: 1 | V178: 1300 | AA178: Referência: AGETOP - 70581
A179: S | B179: 2 | C179: S | D179: 0 | E179: 8 | F179: 7 | G179: 0 | H179: 0 | I179: 0 | J179: 0 | K179: 0 | M179: Serviço | N179: Serviço | O179: 8.7.0.0.15. | P179: SINAPI | Q179: 91929 | R179: CABO DE COBRE FLEXÍVEL ISOLADO, 4 MM², ANTI-CHAMA 0,6/1,0 KV, PARA CIRCUITOS TERMINAIS - FORNECIMENTO E INSTALAÇÃO. AF_12/2015 | S179: M | T179: 180 | U179: 1 | V179: 180 | AA179: Referência: AGETOP - 70582
A180: S | B180: 2 | C180: S | D180: 0 | E180: 8 | F180: 7 | G180: 0 | H180: 0 | I180: 0 | J180: 0 | K180: 0 | M180: Serviço | N180: Serviço | O180: 8.7.0.0.16. | P180: AGETOP | Q180: 70720 | R180: CAIXA METÁLICA PARA MEDIDOR POLIFÁSICO PADRÃO ENEL 500X380X166MM | S180: Un | T180: 1 | U180: 1 | V180: 1
A181: S | B181: 2 | C181: S | D181: 0 | E181: 8 | F181: 7 | G181: 0 | H181: 0 | I181: 0 | J181: 0 | K181: 0 | M181: Serviço | N181: Serviço | O181: 8.7.0.0.17. | P181: AGETOP | Q181: 70929 | R181: CONDULETE METÁLICO - CAIXA COM 5 ENTRADAS | S181: un | T181: 29 | U181: 1 | V181: 29
A182: S | B182: 2 | C182: S | D182: 0 | E182: 8 | F182: 7 | G182: 0 | H182: 0 | I182: 0 | J182: 0 | K182: 0 | M182: Serviço | N182: Serviço | O182: 8.7.0.0.18. | P182: AGETOP | Q182: 70713 | R182: CAIXA DE PASSAGEM 40X40X50CM FUNDO DE BRITA SEM TAMPA | S182: Un | T182: 2 | U182: 1 | V182: 2
A183: S | B183: 2 | C183: S | D183: 0 | E183: 8 | F183: 7 | G183: 0 | H183: 0 | I183: 0 | J183: 0 | K183: 0 | M183: Serviço | N183: Serviço | O183: 8.7.0.0.19. | P183: AGETOP | Q183: 70930 | R183: CONDULETE METÁLICO - ADAPTADOR DE SAÍDA 3/4" | S183: un | T183: 69 | U183: 1 | V183: 69
A184: S | B184: 2 | C184: S | D184: 0 | E184: 8 | F184: 7 | G184: 0 | H184: 0 | I184: 0 | J184: 0 | K184: 0 | M184: Serviço | N184: Serviço | O184: 8.7.0.0.20. | P184: AGETOP | Q184: 70634 | R184: CAIXA DE PASSAGEM - TAMPA EM CONCRETO ARMADO 25 MPA E=5CM | S184: m2 | T184: 0.32 | U184: 1 | V184: 0.32
A185: S | B185: 2 | C185: S | D185: 0 | E185: 8 | F185: 7 | G185: 0 | H185: 0 | I185: 0 | J185: 0 | K185: 0 | M185: Serviço | N185: Serviço | O185: 8.7.0.0.21. | P185: SINAPI | Q185: 93653 | R185: DISJUNTOR MONOPOLAR TIPO DIN, CORRENTE NOMINAL DE 10A - FORNECIMENTO E INSTALAÇÃO. AF_04/2016 | S185: UN | T185: 14 | U185: 1 | V185: 14
A186: S | B186: 2 | C186: S | D186: 0 | E186: 8 | F186: 7 | G186: 0 | H186: 0 | I186: 0 | J186: 0 | K186: 0 | M186: Serviço | N186: Serviço | O186: 8.7.0.0.22. | P186: SINAPI | Q186: 93655 | R186: DISJUNTOR MONOPOLAR TIPO DIN, CORRENTE NOMINAL DE 20A - FORNECIMENTO E INSTALAÇÃO. AF_04/2016 | S186: UN | T186: 15 | U186: 1 | V186: 15
A187: S | B187: 2 | C187: S | D187: 0 | E187: 8 | F187: 7 | G187: 0 | H187: 0 | I187: 0 | J187: 0 | K187: 0 | M187: Serviço | N187: Serviço | O187: 8.7.0.0.23. | P187: SINAPI | Q187: 93654 | R187: DISJUNTOR MONOPOLAR TIPO DIN, CORRENTE NOMINAL DE 16A - FORNECIMENTO E INSTALAÇÃO. AF_04/2016 | S187: UN | T187: 4 | U187: 1 | V187: 4
A188: S | B188: 2 | C188: S | D188: 0 | E188: 8 | F188: 7 | G188: 0 | H188: 0 | I188: 0 | J188: 0 | K188: 0 | M188: Serviço | N188: Serviço | O188: 8.7.0.0.24. | P188: SINAPI | Q188: 93656 | R188: DISJUNTOR MONOPOLAR TIPO DIN, CORRENTE NOMINAL DE 25A - FORNECIMENTO E INSTALAÇÃO. AF_04/2016 | S188: UN | T188: 2 | U188: 1 | V188: 2
A189: S | B189: 2 | C189: S | D189: 0 | E189: 8 | F189: 7 | G189: 0 | H189: 0 | I189: 0 | J189: 0 | K189: 0 | M189: Serviço | N189: Serviço | O189: 8.7.0.0.25. | P189: SINAPI | Q189: 93671 | R189: DISJUNTOR TRIPOLAR TIPO DIN, CORRENTE NOMINAL DE 32A - FORNECIMENTO E INSTALAÇÃO. AF_04/2016 | S189: UN | T189: 4 | U189: 1 | V189: 4 | AA189: Referência: AGETOP - 71173
A190: S | B190: 2 | C190: S | D190: 0 | E190: 8 | F190: 7 | G190: 0 | H190: 0 | I190: 0 | J190: 0 | K190: 0 | M190: Serviço | N190: Serviço | O190: 8.7.0.0.26. | P190: AGETOP | Q190: 71175 | R190: DISJUNTOR TRIPOLAR DE 60 A 100-A | S190: Un | T190: 2 | U190: 1 | V190: 2
A191: S | B191: 2 | C191: S | D191: 0 | E191: 8 | F191: 7 | G191: 0 | H191: 0 | I191: 0 | J191: 0 | K191: 0 | M191: Serviço | N191: Serviço | O191: 8.7.0.0.27. | P191: AGETOP | Q191: 71174 | R191: DISJUNTOR TRIPOLAR 40 A 50A | S191: Un | T191: 4 | U191: 1 | V191: 4
A192: S | B192: 2 | C192: S | D192: 0 | E192: 8 | F192: 7 | G192: 0 | H192: 0 | I192: 0 | J192: 0 | K192: 0 | M192: Serviço | N192: Serviço | O192: 8.7.0.0.28. | P192: AGETOP | Q192: 71184 | R192: DISPOSITIVO DE PROTEÇÃO CONTRA SURTOS (D.P.S.) 275V DE 8 A 40KA | S192: Un | T192: 4 | U192: 1 | V192: 4
A193: S | B193: 2 | C193: S | D193: 0 | E193: 8 | F193: 7 | G193: 0 | H193: 0 | I193: 0 | J193: 0 | K193: 0 | M193: Serviço | N193: Serviço | O193: 8.7.0.0.29. | P193: SINAPI | Q193: 91844 | R193: ELETRODUTO FLEXÍVEL CORRUGADO, PVC, DN 25 MM (3/4"), PARA CIRCUITOS TERMINAIS, INSTALADO EM LAJE - FORNECIMENTO E INSTALAÇÃO. AF_12/2015 | S193: M | T193: 360 | U193: 1 | V193: 360
A194: S | B194: 2 | C194: S | D194: 0 | E194: 8 | F194: 7 | G194: 0 | H194: 0 | I194: 0 | J194: 0 | K194: 0 | M194: Serviço | N194: Serviço | O194: 8.7.0.0.30. | P194: SINAPI | Q194: 93008 | R194: ELETRODUTO RÍGIDO ROSCÁVEL, PVC, DN 50 MM (1 1/2") - FORNECIMENTO E INSTALAÇÃO. AF_12/2015 | S194: M | T194: 42 | U194: 1 | V194: 42
A195: S | B195: 2 | C195: S | D195: 0 | E195: 8 | F195: 7 | G195: 0 | H195: 0 | I195: 0 | J195: 0 | K195: 0 | M195: Serviço | N195: Serviço | O195: 8.7.0.0.31. | P195: SINAPI | Q195: 93009 | R195: ELETRODUTO RÍGIDO ROSCÁVEL, PVC, DN 60 MM (2") - FORNECIMENTO E INSTALAÇÃO. AF_12/2015 | S195: M | T195: 27 | U195: 1 | V195: 27
A196: S | B196: 2 | C196: S | D196: 0 | E196: 8 | F196: 7 | G196: 0 | H196: 0 | I196: 0 | J196: 0 | K196: 0 | M196: Serviço | N196: Serviço | O196: 8.7.0.0.32. | P196: AGETOP | Q196: 71321 | R196: FITA DE AUTO FUSAO, ROLO E 10,00 MM | S196: Un | T196: 5 | U196: 1 | V196: 5
A197: S | B197: 2 | C197: S | D197: 0 | E197: 8 | F197: 7 | G197: 0 | H197: 0 | I197: 0 | J197: 0 | K197: 0 | M197: Serviço | N197: Serviço | O197: 8.7.0.0.33. | P197: AGETOP | Q197: 71331 | R197: FITA ISOLANTE, ROLO DE 20,00 M | S197: Un | T197: 20 | U197: 1 | V197: 20
A198: S | B198: 2 | C198: S | D198: 0 | E198: 8 | F198: 7 | G198: 0 | H198: 0 | I198: 0 | J198: 0 | K198: 0 | M198: Serviço | N198: Serviço | O198: 8.7.0.0.34. | P198: AGETOP | Q198: 71381 | R198: HASTE REV.COBRE(COPPERWELD) 5/8" X 3,00 M C/CONECTOR | S198: Un | T198: 3 | U198: 1 | V198: 3
A199: =CHOOSE(1+LOG(1+2*(ORÇAMENTO.Nivel="Nível 1")+4*(ORÇAMENTO.Nivel="Nível 2")+8*(ORÇAMENTO.Nivel="Nível 3")+16*(ORÇAMENTO.Nivel="Nível 4")+32*(ORÇAMENTO.Nivel="Serviço"),2),0,1,2,3,4,"S") -> S | B199: 2 | C199: S | D199: 0 | E199: 8 | F199: 7 | G199: 0 | H199: 0 | I199: =IF(AND($C199<=4,$C199<>0),0,IF(AND($C199="S",$Y199>0),OFFSET(I199,-1,0)+1,OFFSET(I199,-1,0))) -> 0 | J199: 0 | K199: 0 | M199: Serviço | N199: Serviço | O199: 8.7.0.0.35. | P199: AGETOP | Q199: 71450 | R199: INTERRUPTOR DIFERENCIAL RESIDUAL (D.R.) BIPOLAR DE 25A-30mA | S199: Un | T199: 3 | U199: 1 | V199: 3
A200: S | B200: 2 | C200: S | D200: 0 | E200: 8 | F200: 7 | G200: 0 | H200: 0 | I200: 0 | J200: 0 | K200: 0 | M200: Serviço | N200: Serviço | O200: 8.7.0.0.36. | P200: SINAPI | Q200: 91953 | R200: INTERRUPTOR SIMPLES (1 MÓDULO), 10A/250V, INCLUINDO SUPORTE E PLACA - FORNECIMENTO E INSTALAÇÃO. AF_12/2015 | S200: UN | T200: 33 | U200: 1 | V200: 33 | AA200: Referência: AGETOP - 71440
A201: S | B201: 2 | C201: S | D201: 0 | E201: 8 | F201: 7 | G201: 0 | H201: 0 | I201: 0 | J201: 0 | K201: 0 | L201: =IF(OR(Y201>0,$C201=1),"F","") ->  | M201: Serviço | N201: =CHOOSE(1+LOG(1+2*(C201=1)+4*(C201=2)+8*(C201=3)+16*(C201=4)+32*(C201="S"),2),"","Nível 1","Nível 2","Nível 3","Nível 4","Serviço") -> Serviço | O201: 8.7.0.0.37. | P201: SINAPI | Q201: 97586 | R201: LUMINÁRIA TIPO CALHA, DE SOBREPOR, COM 2 LÂMPADAS TUBULARES FLUORESCENTES DE 36 W, COM REATOR DE PARTIDA RÁPIDA - FORNECIMENTO E INSTALAÇÃO. AF_02/2020 | S201: UN | T201: 67 | U201: 1 | V201: 67
A202: S | B202: =IF(OR(C202="s",C202=0),OFFSET(B202,-1,0),C202) -> 2 | C202: =IF(OFFSET(C202,-1,0)="L",1,IF(OFFSET(C202,-1,0)=1,2,IF(OR(A202="s",A202=0),"S",IF(AND(OFFSET(C202,-1,0)=2,A202=4),3,IF(AND(OR(OFFSET(C202,-1,0)="s",OFFSET(C202,-1,0)=0),A202<>"s",A202>OFFSET(B202,-1,0)),OFFSET(B202,-1,0),A202))))) -> S | D202: =IF(OR(C202="S",C202=0),0,IF(ISERROR(K202),J202,SMALL(J202:K202,1))) -> 0 | E202: =IF($C202=1,OFFSET(E202,-1,0)+1,OFFSET(E202,-1,0)) -> 8 | F202: =IF($C202=1,0,IF($C202=2,OFFSET(F202,-1,0)+1,OFFSET(F202,-1,0))) -> 7 | G202: =IF(AND($C202<=2,$C202<>0),0,IF($C202=3,OFFSET(G202,-1,0)+1,OFFSET(G202,-1,0))) -> 0 | H202: =IF(AND($C202<=3,$C202<>0),0,IF($C202=4,OFFSET(H202,-1,0)+1,OFFSET(H202,-1,0))) -> 0 | I202: 0 | J202: 0 | K202: 0 | M202: Serviço | N202: Serviço | O202: 8.7.0.0.38. | P202: SINAPI | Q202: 91959 | R202: INTERRUPTOR SIMPLES (2 MÓDULOS), 10A/250V, INCLUINDO SUPORTE E PLACA - FORNECIMENTO E INSTALAÇÃO. AF_12/2015 | S202: UN | T202: 2 | U202: 1 | V202: 2 | AA202: Referência: AGETOP - 71441
A203: S | B203: 2 | C203: S | D203: 0 | E203: 8 | F203: 7 | G203: 0 | H203: 0 | I203: 0 | J203: 0 | K203: 0 | M203: Serviço | N203: Serviço | O203: 8.7.0.0.39. | P203: COMPOSIÇÃO | Q203: COMP 387_SEE | R203: LÂMPADA LED TUBULAR 18W | S203: UN | T203: 134 | U203: 1 | V203: 134
A204: S | B204: 2 | C204: S | D204: 0 | E204: 8 | F204: 7 | G204: 0 | H204: 0 | I204: 0 | J204: 0 | K204: 0 | M204: Serviço | N204: Serviço | O204: 8.7.0.0.40. | P204: SINAPI | Q204: 97590 | R204: LUMINÁRIA TIPO PLAFON REDONDO COM VIDRO FOSCO, DE SOBREPOR, COM 1 LÂMPADA FLUORESCENTE DE 15 W, SEM REATOR - FORNECIMENTO E INSTALAÇÃO. AF_02/2020 | S204: UN | T204: 19 | U204: 1 | V204: 19
A205: S | B205: 2 | C205: S | D205: 0 | E205: 8 | F205: 7 | G205: 0 | H205: 0 | I205: 0 | J205: 0 | K205: 0 | M205: Serviço | N205: Serviço | O205: 8.7.0.0.41. | P205: SINAPI | Q205: 91885 | R205: LUVA PARA ELETRODUTO, PVC, ROSCÁVEL, DN 32 MM (1"), PARA CIRCUITOS TERMINAIS, INSTALADA EM PAREDE - FORNECIMENTO E INSTALAÇÃO. AF_12/2015 | S205: UN | T205: 16 | U205: 1 | V205: 16 | AA205: Referência: AGETOP - 71742
A206: S | B206: 2 | C206: S | D206: 0 | E206: 8 | F206: 7 | G206: 0 | H206: 0 | I206: 0 | J206: 0 | K206: 0 | M206: Serviço | N206: Serviço | O206: 8.7.0.0.42. | P206: SINAPI | Q206: 93013 | R206: LUVA PARA ELETRODUTO, PVC, ROSCÁVEL, DN 50 MM (1 1/2") - FORNECIMENTO E INSTALAÇÃO. AF_12/2015 | S206: UN | T206: 14 | U206: 1 | V206: 14 | AA206: Referência: AGETOP - 71744
... 137 more rows

Sheet Resumo
B3: UNIDADE ESCOLAR | G3: CÓDIGO INEP
B4: =Orçamento!$O$4 -> CRE DE IPORÁ | G4: =Orçamento!X4 -> 52027163
B6: OBRA | G6: CIDADE
B7: =Orçamento!$O$7 -> REFORMA E AMPLIAÇÃO | G7: =Orçamento!$X$7 -> IPORÁ
B9: ENDEREÇO | G9: CRE
B10: =Orçamento!$R$10 -> Rua D - Vila Padre Cícero - S/N - CEP:76.200-000 | G10: =Orçamento!$O$10 -> CRE DE IPORÁ
B12: REFERÊNCIA | D12: DATA | G12: ÁREA TOTAL CONSTRUÍDA (M²)
B13: =CONCATENATE("AGETOP E SINAPI - ",Orçamento!$T$10) -> AGETOP E SINAPI - DESONERADA | D13: =Orçamento!$S$7 -> 2020-06-10 | G13: =Orçamento!$X$13 -> 774.52
A14: FILTRO
B15: RESUMO GERAL DO ORÇAMENTO
A16: ↓ | B16: ITEM | C16: DESCRIÇÃO DOS SERVIÇOS | G16: PREÇO SEM BDI | H16: PREÇO COM BDI | I16: PARTICIP. (%)
A17: =IF(G17>0,"F","") -> F | B17: 1. | C17: =Orçamento!#REF! ->  | G17: =IFERROR(Orçamento!#REF!,"-") -> - | H17: =IFERROR(Orçamento!#REF!,"") ->  | I17: =Orçamento!#REF! -> 
A18: =IF(G18>0,"F","") -> F | B18: 2. | C18: =Orçamento!#REF! ->  | G18: =IFERROR(Orçamento!#REF!,"-") -> - | H18: =IFERROR(Orçamento!#REF!,"") ->  | I18: =Orçamento!#REF! -> 
A19: F | B19: 3. | C19: =Orçamento!#REF! ->  | G19: =IFERROR(Orçamento!#REF!,"-") -> - | H19: =IFERROR(Orçamento!#REF!,"") ->  | I19: =Orçamento!#REF! -> 
A20: F | B20: 4. | C20: =Orçamento!#REF! ->  | G20: =IFERROR(Orçamento!#REF!,"-") -> - | H20: =IFERROR(Orçamento!#REF!,"") ->  | I20: =Orçamento!#REF! -> 
A21: F | B21: 5. | C21: =Orçamento!#REF! ->  | G21: =IFERROR(Orçamento!#REF!,"-") -> - | H21: =IFERROR(Orçamento!#REF!,"") ->  | I21: =Orçamento!#REF! -> 
A22: F | B22: 6. | C22: =Orçamento!#REF! ->  | G22: =IFERROR(Orçamento!#REF!,"-") -> - | H22: =IFERROR(Orçamento!#REF!,"") ->  | I22: =Orçamento!#REF! -> 
A23: F | B23: 7. | C23: =Orçamento!#REF! ->  | G23: =IFERROR(Orçamento!#REF!,"-") -> - | H23: =IFERROR(Orçamento!#REF!,"") ->  | I23: =Orçamento!#REF! -> 
A24: F | B24: 8. | C24: =Orçamento!#REF! ->  | G24: =IFERROR(Orçamento!#REF!,"-") -> - | H24: =IFERROR(Orçamento!#REF!,"") ->  | I24: =Orçamento!#REF! -> 
A25: F | B25: 9. | C25: =Orçamento!#REF! ->  | G25: =IFERROR(Orçamento!#REF!,"-") -> - | H25: =IFERROR(Orçamento!#REF!,"") ->  | I25: =Orçamento!#REF! -> 
A26: F | B26: 10. | C26: =Orçamento!#REF! ->  | G26: =IFERROR(Orçamento!#REF!,"-") -> - | H26: =IFERROR(Orçamento!#REF!,"") ->  | I26: =Orçamento!#REF! -> 
A27: F | B27: 11. | C27: =Orçamento!#REF! ->  | G27: =IFERROR(Orçamento!#REF!,"-") -> - | H27: =IFERROR(Orçamento!#REF!,"") ->  | I27: =Orçamento!#REF! -> 
A28: F | B28: 12. | C28: =Orçamento!#REF! ->  | G28: =IFERROR(Orçamento!#REF!,"-") -> - | H28: =IFERROR(Orçamento!#REF!,"") ->  | I28: =Orçamento!#REF! -> 
A29: F | B29: 13. | C29: =Orçamento!#REF! ->  | G29: =IFERROR(Orçamento!#REF!,"-") -> - | H29: =IFERROR(Orçamento!#REF!,"") ->  | I29: =Orçamento!#REF! -> 
A30: F | B30: 14. | C30: =Orçamento!#REF! ->  | G30: =IFERROR(Orçamento!#REF!,"-") -> - | H30: =IFERROR(Orçamento!#REF!,"") ->  | I30: =Orçamento!#REF! -> 
A31: F | B31: 15. | C31: =Orçamento!#REF! ->  | G31: =IFERROR(Orçamento!#REF!,"-") -> - | H31: =IFERROR(Orçamento!#REF!,"") ->  | I31: =Orçamento!#REF! -> 
A32: F | B32: 16. | C32: =Orçamento!#REF! ->  | G32: =IFERROR(Orçamento!#REF!,"-") -> - | H32: =IFERROR(Orçamento!#REF!,"") ->  | I32: =Orçamento!#REF! -> 
A33: F | B33: 17. | C33: =Orçamento!#REF! ->  | G33: =IFERROR(Orçamento!#REF!,"-") -> - | H33: =IFERROR(Orçamento!#REF!,"") ->  | I33: =Orçamento!#REF! -> 
A34: F | B34: 18. | C34: =Orçamento!#REF! ->  | G34: =IFERROR(Orçamento!#REF!,"-") -> - | H34: =IFERROR(Orçamento!#REF!,"") ->  | I34: =Orçamento!#REF! -> 
A35: F | B35: 19. | C35: =Orçamento!#REF! ->  | G35: =IFERROR(Orçamento!#REF!,"-") -> - | H35: =IFERROR(Orçamento!#REF!,"") ->  | I35: =Orçamento!#REF! -> 
A36: F | B36: 20. | C36: =Orçamento!#REF! ->  | G36: =IFERROR(Orçamento!#REF!,"-") -> - | H36: =IFERROR(Orçamento!#REF!,"") ->  | I36: =Orçamento!#REF! -> 
A37: F | B37: TOTAL GERAL DO ORÇAMENTO (R$) | G37: =SUM(G17:G36) -> 0 | H37: =SUM(H17:H36) -> 0 | I37: =SUM(I17:I36) -> 
A38: F
A39: F

Sheet Somatório
B3: UNIDADE ESCOLAR | E3: CÓDIGO INEP
B4: =Orçamento!$O$4 -> CRE DE IPORÁ | E4: =Orçamento!X4 -> 52027163
B6: OBRA | E6: CIDADE
B7: =Orçamento!$O$7 -> REFORMA E AMPLIAÇÃO | E7: =Orçamento!$X$7 -> IPORÁ
B9: ENDEREÇO | E9: CRE
B10: =Orçamento!$R$10 -> Rua D - Vila Padre Cícero - S/N - CEP:76.200-000 | E10: =Orçamento!$O$10 -> CRE DE IPORÁ
B12: REFERÊNCIA | D12: DATA | E12: ÁREA TOTAL CONSTRUÍDA (M²)
B13: =CONCATENATE("AGETOP E SINAPI - ",Orçamento!$T$10) -> AGETOP E SINAPI - DESONERADA | D13: =Orçamento!$S$7 -> 2020-06-10 | E13: =Orçamento!$X$13 -> 774.52
A14: FILTRO
B15: SOMATÓRIO DE SERVIÇOS
A16: ↓ | B16: ITEM | C16: DESCRIÇÃO DOS SERVIÇOS | D16: PREÇO SEM BDI (R$) | E16: PREÇO COM BDI (R$) | F16: PARTIC. ( % )
A17: =IF(D17>0,"F","") ->  | B17: a. | C17: =Orçamento!#REF! ->  | D17: =Orçamento!#REF! ->  | E17: =Orçamento!#REF! ->  | F17: =Orçamento!#REF! -> 
A18: =IF(D18>0,"F","") ->  | B18: b. | C18: =Orçamento!#REF! ->  | D18: =Orçamento!#REF! ->  | E18: =Orçamento!#REF! ->  | F18: =Orçamento!#REF! -> 
B19: c. | C19: =Orçamento!#REF! ->  | D19: =Orçamento!#REF! ->  | E19: =Orçamento!#REF! ->  | F19: =Orçamento!#REF! -> 
B20: d. | C20: =Orçamento!#REF! ->  | D20: =Orçamento!#REF! ->  | E20: =Orçamento!#REF! ->  | F20: =Orçamento!#REF! -> 
B21: e. | C21: =Orçamento!#REF! ->  | D21: =Orçamento!#REF! ->  | E21: =Orçamento!#REF! ->  | F21: =Orçamento!#REF! -> 
B22: f. | C22: =Orçamento!#REF! ->  | D22: =Orçamento!#REF! ->  | E22: =Orçamento!#REF! ->  | F22: =Orçamento!#REF! -> 
B23: g. | C23: =Orçamento!#REF! ->  | D23: =Orçamento!#REF! ->  | E23: =Orçamento!#REF! ->  | F23: =Orçamento!#REF! -> 
B24: h | C24: =Orçamento!#REF! ->  | D24: =Orçamento!#REF! ->  | E24: =Orçamento!#REF! ->  | F24: =Orçamento!#REF! -> 
B25: i. | C25: =Orçamento!#REF! ->  | D25: =Orçamento!#REF! ->  | E25: =Orçamento!#REF! ->  | F25: =Orçamento!#REF! -> 
B26: j. | C26: =Orçamento!#REF! ->  | D26: =Orçamento!#REF! ->  | E26: =Orçamento!#REF! ->  | F26: =Orçamento!#REF! -> 
B27: k. | C27: =Orçamento!#REF! ->  | D27: =Orçamento!#REF! ->  | E27: =Orçamento!#REF! ->  | F27: =Orçamento!#REF! -> 
B28: l. | C28: =Orçamento!#REF! ->  | D28: =Orçamento!#REF! ->  | E28: =Orçamento!#REF! ->  | F28: =Orçamento!#REF! -> 
B29: m. | C29: =Orçamento!#REF! ->  | D29: =Orçamento!#REF! ->  | E29: =Orçamento!#REF! ->  | F29: =Orçamento!#REF! -> 
B30: n. | C30: =Orçamento!#REF! ->  | D30: =Orçamento!#REF! ->  | E30: =Orçamento!#REF! ->  | F30: =Orçamento!#REF! -> 
B31: o. | C31: =Orçamento!#REF! ->  | D31: =Orçamento!#REF! ->  | E31: =Orçamento!#REF! ->  | F31: =Orçamento!#REF! -> 
B32: p. | C32: =Orçamento!#REF! ->  | D32: =Orçamento!#REF! ->  | E32: =Orçamento!#REF! ->  | F32: =Orçamento!#REF! -> 
B33: q. | C33: =Orçamento!#REF! ->  | D33: =Orçamento!#REF! ->  | E33: =Orçamento!#REF! ->  | F33: =Orçamento!#REF! -> 
B34: r. | C34: =Orçamento!#REF! ->  | D34: =Orçamento!#REF! ->  | E34: =Orçamento!#REF! ->  | F34: =Orçamento!#REF! -> 
B35: s. | C35: =Orçamento!#REF! ->  | D35: =Orçamento!#REF! ->  | E35: =Orçamento!#REF! ->  | F35: =Orçamento!#REF! -> 
B36: t. | C36: =Orçamento!#REF! ->  | D36: =Orçamento!#REF! ->  | E36: =Orçamento!#REF! ->  | F36: =Orçamento!#REF! -> 
B37: u. | C37: =Orçamento!#REF! ->  | D37: =Orçamento!#REF! ->  | E37: =Orçamento!#REF! ->  | F37: =Orçamento!#REF! -> 
B38: v. | C38: =Orçamento!#REF! ->  | D38: =Orçamento!#REF! ->  | E38: =Orçamento!#REF! ->  | F38: =Orçamento!#REF! -> 
B39: w. | C39: =Orçamento!#REF! ->  | D39: =Orçamento!#REF! ->  | E39: =Orçamento!#REF! ->  | F39: =Orçamento!#REF! -> 
B40: x. | C40: =Orçamento!#REF! ->  | D40: =Orçamento!#REF! ->  | E40: =Orçamento!#REF! ->  | F40: =Orçamento!#REF! -> 
B41: y. | C41: =Orçamento!#REF! ->  | D41: =Orçamento!#REF! ->  | E41: =Orçamento!#REF! ->  | F41: =Orçamento!#REF! -> 
B42: z. | C42: =Orçamento!#REF! ->  | D42: =Orçamento!#REF! ->  | E42: =Orçamento!#REF! ->  | F42: =Orçamento!#REF! -> 
A43: F | B43: TOTAL GERAL DO ORÇAMENTO | D43: =SUM(D17:D42) ->  | E43: =SUM(E17:E42) ->  | F43: =SUM(F17:F42) -> 
B45: (*) Para itens da AGETOP, os vidros não estão inclusos nas esquadrias e já foram considerados os custos de contramarco para as esquadrias de alumínio;

Sheet Cronog_60_Dias
B3: UNIDADE ESCOLAR | I3: PRAZO
B4: =Orçamento!$O$4 -> CRE DE IPORÁ | I4: 60 DIAS CORRIDOS
B6: OBRA | I6: DATA
B7: =Orçamento!$O$7 -> REFORMA E AMPLIAÇÃO | I7: =Orçamento!$S$7 -> 2020-06-10
B9: LOCAL | I9: ÁREA TOTAL CONSTRUÍDA (M²)
A10: FILTRO | B10: =Orçamento!$X$7 -> IPORÁ | I10: =Orçamento!$X$13 -> 774.52
B12: CRONOGRAMA - FÍSICO FINANCEIRO
A13: ↓ | B13: CUSTO TOTAL: | C13: =D93 ->  | D13: VALOR | E13: Dias: | F13: 30 | J13: 60 | N13: TOTAL
B14: DESCRIÇÃO DOS SERVIÇOS | E14: % | F14: 1ª PARCELA | J14: 2ª PARCELA
A15: =IF(D15>0,"F","") ->  | B15: SERVIÇOS PRELIMINARES | D15: =Orçamento!#REF! ->  | E15: =Orçamento!#REF! ->  | F15: =ROUND(F17*$D$15,2) ->  | J15: =ROUND(J17*$D$15,2) ->  | N15: =SUM(F15:M15) ->  | P15: =IF(D15=N15,"OK","ERRO") -> 
A16: =IF(A15="F",A15,"") -> 
A17: =IF(A16="F",A16,"") ->  | F17: 1 | J17: =1-F17 -> 0 | N17: =IFERROR(E15/100,"") ->  | P17: =IF(E15=N17*100,"OK","ERRO") -> 
A18: =IF(D18>0,"F","") ->  | B18: TRANSPORTES | D18: =Orçamento!#REF! ->  | E18: =Orçamento!#REF! ->  | F18: =ROUND(F20*$D$18,2) ->  | J18: =ROUND(J20*$D$18,2) ->  | N18: =SUM(F18:M18) ->  | P18: =IF(D18=N18,"OK","ERRO") -> 
A19: =IF(A18="F",A18,"") -> 
A20: =IF(A19="F",A19,"") ->  | F20: 0.48 | J20: =1-F20 -> 0.52 | N20: =IFERROR(E18/100,"") ->  | P20: =IF(E18=N20*100,"OK","ERRO") -> 
A21: =IF(D21>0,"F","") ->  | B21: SERVIÇO EM TERRA | D21: =Orçamento!#REF! ->  | E21: =Orçamento!#REF! ->  | F21: =ROUND(F23*$D$21,2) ->  | J21: =ROUND(J23*$D$21,2) ->  | N21: =SUM(F21:M21) ->  | P21: =IF(D21=N21,"OK","ERRO") -> 
A22: =IF(A21="F",A21,"") -> 
A23: =IF(A22="F",A22,"") ->  | F23: 1 | J23: =1-F23 -> 0 | N23: =IFERROR(E21/100,"") ->  | P23: =IF(E21=N23*100,"OK","ERRO") -> 
A24: =IF(D24>0,"F","") ->  | B24: FUNDAÇÕES E SONDAGENS | D24: =Orçamento!#REF! ->  | E24: =Orçamento!#REF! ->  | F24: =ROUND(F26*$D$24,2) ->  | J24: =ROUND(J26*$D$24,2) ->  | N24: =SUM(F24:M24) ->  | P24: =IF(D24=N24,"OK","ERRO") -> 
A25: =IF(A24="F",A24,"") -> 
A26: =IF(A25="F",A25,"") ->  | F26: 1 | J26: =1-F26 -> 0 | N26: =IFERROR(E24/100,"") ->  | P26: =IF(E24=N26*100,"OK","ERRO") -> 
A27: =IF(D27>0,"F","") ->  | B27: ESTRUTURA | D27: =Orçamento!#REF! ->  | E27: =Orçamento!#REF! ->  | F27: =ROUND(F29*$D$27,2) ->  | J27: =ROUND(J29*$D$27,2) ->  | N27: =SUM(F27:M27) ->  | P27: =IF(D27=N27,"OK","ERRO") -> 
A28: =IF(A27="F",A27,"") -> 
A29: =IF(A28="F",A28,"") ->  | F29: 0.49 | J29: =1-F29 -> 0.51 | N29: =IFERROR(E27/100,"") ->  | P29: =IF(E27=N29*100,"OK","ERRO") -> 
A30: =IF(D30>0,"F","") ->  | B30: INST.ELET/TELEFÔNICA/CABEAMENTO ESTRUTURADO | D30: =Orçamento!#REF! ->  | E30: =Orçamento!#REF! ->  | F30: =ROUND(F32*$D$30,2) ->  | J30: =ROUND(J32*$D$30,2) ->  | N30: =SUM(F30:M30) ->  | P30: =IF(D30=N30,"OK","ERRO") -> 
A31: =IF(A30="F",A30,"") -> 
A32: =IF(A31="F",A31,"") ->  | F32: 0.4 | J32: =1-F32 -> 0.6 | N32: =IFERROR(E30/100,"") ->  | P32: =IF(E30=N32*100,"OK","ERRO") -> 
A33: =IF(D33>0,"F","") ->  | B33: INSTALAÇÕES HIDROSSANITÁRIAS | D33: =Orçamento!#REF! ->  | E33: =Orçamento!#REF! ->  | F33: =ROUND(F35*$D$33,2) ->  | J33: =ROUND(J35*$D$33,2) ->  | N33: =SUM(F33:M33) ->  | P33: =IF(D33=N33,"OK","ERRO") -> 
A34: =IF(A33="F",A33,"") -> 
A35: =IF(A34="F",A34,"") ->  | F35: 0.48 | J35: =1-F35 -> 0.52 | N35: =IFERROR(E33/100,"") ->  | P35: =IF(E33=N35*100,"OK","ERRO") -> 
A36: =IF(D36>0,"F","") ->  | B36: INSTALAÇÕES ESPECIAIS | D36: =Orçamento!#REF! ->  | E36: =Orçamento!#REF! ->  | F36: =ROUND(F38*$D$36,2) ->  | J36: =ROUND(J38*$D$36,2) ->  | N36: =SUM(F36:M36) ->  | P36: =IF(D36=N36,"OK","ERRO") -> 
A37: =IF(A36="F",A36,"") -> 
A38: =IF(A37="F",A37,"") ->  | F38: 1 | J38: =1-F38 -> 0 | N38: =IFERROR(E36/100,"") ->  | P38: =IF(E36=N38*100,"OK","ERRO") -> 
A39: =IF(D39>0,"F","") ->  | B39: ALVENARIA E DIVISÓRIAS | D39: =Orçamento!#REF! ->  | E39: =Orçamento!#REF! ->  | F39: =ROUND(F41*$D$39,2) ->  | J39: =ROUND(J41*$D$39,2) ->  | N39: =SUM(F39:M39) ->  | P39: =IF(D39=N39,"OK","ERRO") -> 
A40: =IF(A39="F",A39,"") -> 
A41: =IF(A40="F",A40,"") ->  | F41: 1 | J41: =1-F41 -> 0 | N41: =IFERROR(E39/100,"") ->  | P41: =IF(E39=N41*100,"OK","ERRO") -> 
A42: =IF(D42>0,"F","") ->  | B42: ALVENARIA AUTO-PORTANTE | D42: =Orçamento!#REF! ->  | E42: =Orçamento!#REF! ->  | F42: =ROUND(F44*$D$42,2) ->  | J42: =ROUND(J44*$D$42,2) ->  | N42: =SUM(F42:M42) ->  | P42: =IF(D42=N42,"OK","ERRO") -> 
A43: =IF(A42="F",A42,"") -> 
A44: =IF(A43="F",A43,"") ->  | F44: 1 | J44: =1-F44 -> 0 | N44: =IFERROR(E42/100,"") ->  | P44: =IF(E42=N44*100,"OK","ERRO") -> 
A45: =IF(D45>0,"F","") ->  | B45: IMPERMEABILIZAÇÃO | D45: =Orçamento!#REF! ->  | E45: =Orçamento!#REF! ->  | F45: =ROUND(F47*$D$45,2) ->  | J45: =ROUND(J47*$D$45,2) ->  | N45: =SUM(F45:M45) ->  | P45: =IF(#REF!=N45,"OK","ERRO") -> 
A46: =IF(A45="F",A45,"") -> 
A47: =IF(A46="F",A46,"") ->  | F47: 1 | J47: =1-F47 -> 0 | N47: =IFERROR(E45/100,"") ->  | P47: =IF(A45=N47*100,"OK","ERRO") -> 
A48: =IF(D48>0,"F","") ->  | B48: ISOLAMENTO TÉRMICO E ACÚSTICO | D48: =Orçamento!#REF! ->  | E48: =Orçamento!#REF! ->  | F48: =ROUND(F50*$D$48,2) ->  | J48: =ROUND(J50*$D$48,2) ->  | N48: =SUM(F48:M48) ->  | P48: =IF(#REF!=N48,"OK","ERRO") -> 
A49: =IF(A48="F",A48,"") -> 
A50: =IF(A49="F",A49,"") ->  | F50: 0.5 | J50: =1-F50 -> 0.5 | N50: =IFERROR(E48/100,"") ->  | P50: =IF(A48=N50*100,"OK","ERRO") -> 
A51: =IF(D51>0,"F","") ->  | B51: ESTRUTURA DE MADEIRA | D51: =Orçamento!#REF! ->  | E51: =Orçamento!#REF! ->  | F51: =ROUND(F53*$D$51,2) ->  | J51: =ROUND(J53*$D$51,2) ->  | N51: =SUM(F51:M51) ->  | P51: =IF(#REF!=N51,"OK","ERRO") -> 
A52: =IF(A51="F",A51,"") -> 
A53: =IF(A52="F",A52,"") ->  | F53: 0.4 | J53: =1-F53 -> 0.6 | N53: =IFERROR(E51/100,"") ->  | P53: =IF(A51=N53*100,"OK","ERRO") -> 
A54: =IF(D54>0,"F","") ->  | B54: ESTRUTURA METÁLICA | D54: =Orçamento!#REF! ->  | E54: =Orçamento!#REF! ->  | F54: =ROUND(F56*$D$54,2) ->  | J54: =ROUND(J56*$D$54,2) ->  | N54: =SUM(F54:M54) ->  | P54: =IF(#REF!=N54,"OK","ERRO") -> 
A55: =IF(A54="F",A54,"") -> 
A56: =IF(A55="F",A55,"") ->  | F56: 0.35 | J56: =1-F56 -> 0.65 | N56: =IFERROR(E54/100,"") ->  | P56: =IF(A54=N56*100,"OK","ERRO") -> 
A57: =IF(D57>0,"F","") ->  | B57: COBERTURAS | D57: =Orçamento!#REF! ->  | E57: =Orçamento!#REF! ->  | F57: =ROUND(F59*$D$57,2) ->  | J57: =ROUND(J59*$D$57,2) ->  | N57: =SUM(F57:M57) ->  | P57: =IF(D57=N57,"OK","ERRO") -> 
A58: =IF(A57="F",A57,"") -> 
A59: =IF(A58="F",A58,"") ->  | F59: 0 | J59: =1-F59 -> 1 | N59: =IFERROR(E57/100,"") ->  | P59: =IF(E57=N59*100,"OK","ERRO") -> 
A60: =IF(D60>0,"F","") ->  | B60: ESQUADRIAS DE MADEIRA | D60: =Orçamento!#REF! ->  | E60: =Orçamento!#REF! ->  | F60: =ROUND(F62*$D$60,2) ->  | J60: =ROUND(J62*$D$60,2) ->  | N60: =SUM(F60:M60) ->  | P60: =IF(D60=N60,"OK","ERRO") -> 
A61: =IF(A60="F",A60,"") -> 
A62: =IF(A61="F",A61,"") ->  | F62: 0.54 | J62: =1-F62 -> 0.46 | N62: =IFERROR(E60/100,"") ->  | P62: =IF(E60=N62*100,"OK","ERRO") -> 
A63: =IF(D63>0,"F","") ->  | B63: ESQUADRIAS METÁLICAS | D63: =Orçamento!#REF! ->  | E63: =Orçamento!#REF! ->  | F63: =ROUND(F65*$D$63,2) ->  | J63: =ROUND(J65*$D$63,2) ->  | N63: =SUM(F63:M63) ->  | P63: =IF(D63=N63,"OK","ERRO") -> 
A64: =IF(A63="F",A63,"") -> 
A65: =IF(A64="F",A64,"") ->  | F65: 0.49 | J65: =1-F65 -> 0.51 | N65: =IFERROR(E63/100,"") ->  | P65: =IF(E63=N65*100,"OK","ERRO") -> 
A66: =IF(D66>0,"F","") ->  | B66: VIDROS | D66: =Orçamento!#REF! ->  | E66: =Orçamento!#REF! ->  | F66: =ROUND(F68*$D$66,2) ->  | J66: =ROUND(J68*$D$66,2) ->  | N66: =SUM(F66:M66) ->  | P66: =IF(D66=N66,"OK","ERRO") -> 
A67: =IF(A66="F",A66,"") -> 
A68: =IF(A67="F",A67,"") ->  | F68: 0 | J68: =1-F68 -> 1 | N68: =IFERROR(E66/100,"") ->  | P68: =IF(E66=N68*100,"OK","ERRO") -> 
A69: =IF(D69>0,"F","") ->  | B69: REVESTIMENTO DE PAREDE | D69: =Orçamento!#REF! ->  | E69: =Orçamento!#REF! ->  | F69: =ROUND(F71*$D$69,2) ->  | J69: =ROUND(J71*$D$69,2) ->  | N69: =SUM(F69:M69) ->  | P69: =IF(D69=N69,"OK","ERRO") -> 
A70: =IF(A69="F",A69,"") -> 
A71: =IF(A70="F",A70,"") ->  | F71: 0.32 | J71: =1-F71 -> 0.68 | N71: =IFERROR(E69/100,"") ->  | P71: =IF(E69=N71*100,"OK","ERRO") -> 
A72: =IF(D72>0,"F","") ->  | B72: FORROS | D72: =Orçamento!#REF! ->  | E72: =Orçamento!#REF! ->  | F72: =ROUND(F74*$D$72,2) ->  | J72: =ROUND(J74*$D$72,2) ->  | N72: =SUM(F72:M72) ->  | P72: =IF(D72=N72,"OK","ERRO") -> 
A73: =IF(A72="F",A72,"") -> 
A74: =IF(A73="F",A73,"") ->  | F74: 0.24 | J74: =1-F74 -> 0.76 | N74: =IFERROR(E72/100,"") ->  | P74: =IF(E72=N74*100,"OK","ERRO") -> 
A75: =IF(D75>0,"F","") ->  | B75: REVESTIMENTO DE PISO | D75: =Orçamento!#REF! ->  | E75: =Orçamento!#REF! ->  | F75: =ROUND(F77*$D$75,2) ->  | J75: =ROUND(J77*$D$75,2) ->  | N75: =SUM(F75:M75) ->  | P75: =IF(D75=N75,"OK","ERRO") -> 
A76: =IF(A75="F",A75,"") -> 
A77: =IF(A76="F",A76,"") ->  | F77: 0.49 | J77: =1-F77 -> 0.51 | N77: =IFERROR(E75/100,"") ->  | P77: =IF(E75=N77*100,"OK","ERRO") -> 
A78: =IF(D78>0,"F","") ->  | B78: FERRAGENS | D78: =Orçamento!#REF! ->  | E78: =Orçamento!#REF! ->  | F78: =ROUND(F80*$D$78,2) ->  | J78: =ROUND(J80*$D$78,2) ->  | N78: =SUM(F78:M78) ->  | P78: =IF(D78=N78,"OK","ERRO") -> 
A79: =IF(A78="F",A78,"") -> 
A80: =IF(A79="F",A79,"") ->  | F80: 0 | J80: =1-F80 -> 1 | N80: =IFERROR(E78/100,"") ->  | P80: =IF(E78=N80*100,"OK","ERRO") -> 
A81: =IF(D81>0,"F","") ->  | B81: MARCENARIA | D81: =Orçamento!#REF! ->  | E81: =Orçamento!#REF! ->  | F81: =ROUND(F83*$D$81,2) ->  | J81: =ROUND(J83*$D$81,2) ->  | N81: =SUM(F81:M81) ->  | P81: =IF(D81=N81,"OK","ERRO") -> 
A82: =IF(A81="F",A81,"") -> 
A83: =IF(A82="F",A82,"") ->  | F83: 0.4 | J83: =1-F83 -> 0.6 | N83: =IFERROR(E81/100,"") ->  | P83: =IF(E81=N83*100,"OK","ERRO") -> 
A84: =IF(D84>0,"F","") ->  | B84: ADMINISTRAÇÃO - MENSALISTAS | D84: =Orçamento!#REF! ->  | E84: =Orçamento!#REF! ->  | F84: =ROUND(F86*$D$84,2) ->  | J84: =ROUND(J86*$D$84,2) ->  | N84: =SUM(F84:M84) ->  | P84: =IF(D84=N84,"OK","ERRO") -> 
A85: =IF(A84="F",A84,"") -> 
A86: =IF(A85="F",A85,"") ->  | F86: 0.49 | J86: =1-F86 -> 0.51 | N86: =IFERROR(E84/100,"") ->  | P86: =IF(E84=N86*100,"OK","ERRO") -> 
A87: =IF(D87>0,"F","") ->  | B87: PINTURA | D87: =Orçamento!#REF! ->  | E87: =Orçamento!#REF! ->  | F87: =ROUND(F89*$D$87,2) ->  | J87: =ROUND(J89*$D$87,2) ->  | N87: =SUM(F87:M87) ->  | P87: =IF(D87=N87,"OK","ERRO") -> 
A88: =IF(A87="F",A87,"") -> 
A89: =IF(A88="F",A88,"") ->  | F89: 0 | J89: =1-F89 -> 1 | N89: =IFERROR(E87/100,"") ->  | P89: =IF(E87=N89*100,"OK","ERRO") -> 
A90: =IF(D90>0,"F","") ->  | B90: DIVERSOS | D90: =Orçamento!#REF! ->  | E90: =Orçamento!#REF! ->  | F90: =ROUND(F92*$D$90,2) ->  | J90: =ROUND(J92*$D$90,2) ->  | N90: =SUM(F90:M90) ->  | P90: =IF(D90=N90,"OK","ERRO") -> 
A91: =IF(A90="F",A90,"") -> 
A92: =IF(A91="F",A91,"") ->  | F92: 0.46 | J92: =1-F92 -> 0.54 | N92: =IFERROR(E90/100,"") ->  | P92: =IF(E90=N92*100,"OK","ERRO") -> 
A93: F | B93: CUSTO DO ORÇAMENTO | D93: =SUM(D15:D92) ->  | E93: =SUM(E15:E92) ->  | F93: =F15+F18+F21+F24+F27+F30+F33+F36+F39+F42+F45+F48+F51+F54+F57+F60+F63+F66+F69+F72+F75+F78+F81+F84+F87+F90 ->  | J93: =J15+J18+J21+J24+J27+J30+J33+J36+J39+J42+J45+J48+J51+J54+J57+J60+J63+J66+J69+J72+J75+J78+J81+J84+J87+J90 ->  | N93: =N15+N18+N21+N24+N27+N30+N33+N36+N39+N42+N45+N48+N51+N54+N57+N60+N63+N66+N69+N72+N75+N78+N81+N84+N87+N90 ->  | P93: =IF(D93=N93,"OK","ERRO") -> 
A94: F | B94: PERCENTUAIS: | F94: =IFERROR(F93/D93,"") ->  | J94: =IFERROR(J93/D93,"") ->  | N94: =SUM(F94:M94) -> 0
A95: F | B95: TOTAIS ACUMULADOS: | F95: =F93 ->  | J95: =F95+J93 -> 
A96: F | B96: PERCENTUAIS ACUMULADOS: | F96: =F94 ->  | J96: =IFERROR(F96+J94,"") ->  | Q96: =3658+6342 -> 10000
A97: F
A98: F | B98: OBSERVAÇÕES:
A99: F | B99: Os pagamentos somente poderão ser efetuados mediante medição e atesto pelos técnicos da Secretaria da Educação.

Sheet Composição BDI
A3: UNIDADE ESCOLAR
A4: =Orçamento!$O$4 -> CRE DE IPORÁ
A6: OBRA
A7: =Orçamento!$O$7 -> REFORMA E AMPLIAÇÃO
A9: ENDEREÇO
A10: =Orçamento!$R$10 -> Rua D - Vila Padre Cícero - S/N - CEP:76.200-000
A12: CIDADE
A13: =Orçamento!$X$7 -> IPORÁ
A15: CRE
A16: =Orçamento!$O$10 -> CRE DE IPORÁ
A18: DETALHAMENTO DA COMPOSIÇÃO DE BDI
A19: COMPOSIÇÃO BDI PARA OBRAS CIVIS
A20: DESCRIÇÃO | B20: COEF. | C20: TAXA % (a.m) | D20: % no preço de venda
A21: 1) COFINS | B21: 1 | C21: 0.03 | D21: =C21 -> 0.03
A22: 2) PIS | B22: 1 | C22: 0.0065 | D22: =C22 -> 0.0065
A23: 3) ISSQN | B23: 1 | C23: =IFERROR(VLOOKUP($A$13,#REF!,10,FALSE())/100,0) -> 0 | D23: =C23*B23 -> 0
A24: 4) CPRB | B24: 1 | C24: =IF(Orçamento!$T$10="DESONERADA",4.5%,0) -> 0.045 | D24: =C24 -> 0.045
A25: 5) Administração Central | B25: 1 | C25: 0.04 | D25: 0.04
A26: 6) Despesas Financeiras | B26: 1 | C26: 0.0056 | D26: 0.0056
A27: 7) Seguros + Garantias | B27: 1 | C27: 0.0012 | D27: 0.0012
A28: 8) Risco | B28: 1 | C28: 0.0097 | D28: 0.0097
A29: 9) Lucro | B29: 1 | C29: 0.0688 | D29: 0.0688
A30: BDI - FINAL | D30: =(((1+D25+D27+D28)*(1+D26)*(1+D29))/(1-(D21+D22+D23+D24))-1) -> 0.2297135011
A32: Notas:
A33: (1) e (2) Alíquota definida por lei.
A34: (3) Alíquota e base de cálculo definidas pela legislação municipal.
A35: (4) Alíquota definida pelas leis 12.546/11, 12844/13 e 13.161/15 (CPRB – contribuição previdenciária sobre a receita bruta).
A36: (5) Valores definidos a partir dos limites no Acórdão nº 2.622/2013 - TCU – Plenário. Valores entre o 1º e 3º quartis.
A37: (6) Valor calculado pela expressão matemática do acórdão 2.369/2011 – TCU – Plenário e disponibilizado pela AGETOP em dezembro de 2018. (Foi utilizado para o cálculo a média da Taxa SELIC no período de 11/2017 a 10/2018)
A39: (7) Valores definidos pela AGETOP a partir dos limites no Acórdão nº 2.622/2013 - TCU – Plenário. Valores médios. Observação da AGETOP: (Seguros contra erros de execução, incêndio e explosão, danos da natureza (vendaval, destelhamento, alagamento, inundação, desmoronamento, geadas etc.), emprego de material defeituoso ou inadequado, roubo e/ou furto qualificado, quebra de equipamentos, desmoronamento de estrutura, nas modalidades de Obras Civis em Construção (OCC); Instalação e Montagem (IM); e Obras Civis em Construção e Instalação e Montagem (OCC/IM). Bem como coberturas adicionais para ampliação dessas coberturas básicas, como: cobertura de responsabilidade civil geral, cobertura de responsabilidade civil cruzada, cobertura de despesas extraordinárias, cobertura de tumultos, cobertura de desentulho do local, cobertura de riscos do fabricante, dentre outras, incluindo o seguro de vida em grupo regido pela convenção coletiva dos trabalhadores na indústria da construção civil). A partir de 24/02/2015 por intermédio da Portaria 449/2015 a Presidência da AGETOP, na pessoa do Senhor Jayme Eduardo Rincon, determinou a exclusão dos valores referentes aos Seguros de Risco de Engenharia e Responsabilidade Civil do Profissional na composição do cálculo do B.D.I..
A40: (8) Valores definidos a partir dos limites no Acórdão nº 2.622/2013 - TCU – Plenário. Valores entre 1º e 3° quartis.
A41: (9) Valores definidos a partir dos limites definidos no Acórdão nº 2.622/2013 - TCU – Plenário. Valores adotados e praticados no mercado ( “ ex ante ” ) ou aqueles entre os 1º e 3º quartis.
A43: (*) A fórmula para estipulação da taxa de BDI estimado adotado é a mesma que foi aplicada para a obtenção das tabelas contidas no Acórdão n. 2.622/2013 – TCUPlenário
A45: Obs.: Para obras com valores superiores a R$ 20.000.000,00 sugere-se recalcular o BDI, dimensionando as taxas de administração central e lucro para patamares inferiores ao estipulado acima.

Sheet Relatório CENTRAL
B3: UNIDADE ESCOLAR | D3: CIDADE
B4: =Orçamento!$O$4 -> CRE DE IPORÁ | D4: =Orçamento!$X$7 -> IPORÁ
B6: OBRA | D6: CRE
B7: =Orçamento!$O$7 -> REFORMA E AMPLIAÇÃO | D7: =Orçamento!$O$10 -> CRE DE IPORÁ
B9: ENDEREÇO | D9: DATA
A10: FILTRO | B10: =Orçamento!$R$10 -> Rua D - Vila Padre Cícero - S/N - CEP:76.200-000 | D10: =Orçamento!$S$7 -> 2020-06-10
B12: RELATÓRIO CENTRAL
A13: ↓ | B13: CÓDIGO | C13: ETAPA | D13: PREÇO (R$) C/ BDI | E13: PARTIC ( % )
A14: =IF(D14>0,"F","") ->  | B14: =Orçamento!#REF! ->  | C14: =Orçamento!#REF! ->  | D14: =Orçamento!#REF! ->  | E14: =Orçamento!#REF! -> 
A15: =IF(D15>0,"F","") ->  | B15: =Orçamento!#REF! ->  | C15: =Orçamento!#REF! ->  | D15: =Orçamento!#REF! ->  | E15: =Orçamento!#REF! -> 
B16: =Orçamento!#REF! ->  | C16: =Orçamento!#REF! ->  | D16: =Orçamento!#REF! ->  | E16: =Orçamento!#REF! -> 
B17: =Orçamento!#REF! ->  | C17: =Orçamento!#REF! ->  | D17: =Orçamento!#REF! ->  | E17: =Orçamento!#REF! -> 
B18: =Orçamento!#REF! ->  | C18: =Orçamento!#REF! ->  | D18: =Orçamento!#REF! ->  | E18: =Orçamento!#REF! -> 
B19: =Orçamento!#REF! ->  | C19: =Orçamento!#REF! ->  | D19: =Orçamento!#REF! ->  | E19: =Orçamento!#REF! -> 
B20: =Orçamento!#REF! ->  | C20: =Orçamento!#REF! ->  | D20: =Orçamento!#REF! ->  | E20: =Orçamento!#REF! -> 
B21: =Orçamento!#REF! ->  | C21: =Orçamento!#REF! ->  | D21: =Orçamento!#REF! ->  | E21: =Orçamento!#REF! -> 
B22: =Orçamento!#REF! ->  | C22: =Orçamento!#REF! ->  | D22: =Orçamento!#REF! ->  | E22: =Orçamento!#REF! -> 
B23: =Orçamento!#REF! ->  | C23: =Orçamento!#REF! ->  | D23: =Orçamento!#REF! ->  | E23: =Orçamento!#REF! -> 
B24: =Orçamento!#REF! ->  | C24: =Orçamento!#REF! ->  | D24: =Orçamento!#REF! ->  | E24: =Orçamento!#REF! -> 
B25: =Orçamento!#REF! ->  | C25: =Orçamento!#REF! ->  | D25: =Orçamento!#REF! ->  | E25: =Orçamento!#REF! -> 
B26: =Orçamento!#REF! ->  | C26: =Orçamento!#REF! ->  | D26: =Orçamento!#REF! ->  | E26: =Orçamento!#REF! -> 
B27: =Orçamento!#REF! ->  | C27: =Orçamento!#REF! ->  | D27: =Orçamento!#REF! ->  | E27: =Orçamento!#REF! -> 
B28: =Orçamento!#REF! ->  | C28: =Orçamento!#REF! ->  | D28: =Orçamento!#REF! ->  | E28: =Orçamento!#REF! -> 
B29: =Orçamento!#REF! ->  | C29: =Orçamento!#REF! ->  | D29: =Orçamento!#REF! ->  | E29: =Orçamento!#REF! -> 
B30: =Orçamento!#REF! ->  | C30: =Orçamento!#REF! ->  | D30: =Orçamento!#REF! ->  | E30: =Orçamento!#REF! -> 
B31: =Orçamento!#REF! ->  | C31: =Orçamento!#REF! ->  | D31: =Orçamento!#REF! ->  | E31: =Orçamento!#REF! -> 
B32: =Orçamento!#REF! ->  | C32: =Orçamento!#REF! ->  | D32: =Orçamento!#REF! ->  | E32: =Orçamento!#REF! -> 
B33: =Orçamento!#REF! ->  | C33: =Orçamento!#REF! ->  | D33: =Orçamento!#REF! ->  | E33: =Orçamento!#REF! -> 
B34: =Orçamento!#REF! ->  | C34: =Orçamento!#REF! ->  | D34: =Orçamento!#REF! ->  | E34: =Orçamento!#REF! -> 
B35: =Orçamento!#REF! ->  | C35: =Orçamento!#REF! ->  | D35: =Orçamento!#REF! ->  | E35: =Orçamento!#REF! -> 
B36: =Orçamento!#REF! ->  | C36: =Orçamento!#REF! ->  | D36: =Orçamento!#REF! ->  | E36: =Orçamento!#REF! -> 
B37: =Orçamento!#REF! ->  | C37: =Orçamento!#REF! ->  | D37: =Orçamento!#REF! ->  | E37: =Orçamento!#REF! -> 
B38: =Orçamento!#REF! ->  | C38: =Orçamento!#REF! ->  | D38: =Orçamento!#REF! ->  | E38: =Orçamento!#REF! -> 
B39: =Orçamento!#REF! ->  | C39: =Orçamento!#REF! ->  | D39: =Orçamento!#REF! ->  | E39: =Orçamento!#REF! -> 
A40: F | B40: TOTAL GERAL DO ORÇAMENTO (R$) C/BDI | D40: =SUM(D14:D39) ->  | E40: =SUM(E14:E39) -> 

Sheet Parc Maior Relev
B3: UNIDADE ESCOLAR | E3: CÓDIGO INEP
B4: =Orçamento!$O$4 -> CRE DE IPORÁ | E4: =Orçamento!$X$4 -> 52027163
B6: OBRA | E6: CIDADE
B7: =Orçamento!$O$7 -> REFORMA E AMPLIAÇÃO | E7: =Orçamento!$X$7 -> IPORÁ
B9: CRE | E9: ÁREA TOTAL CONSTRUÍDA (M²)
B10: =Orçamento!$O$10 -> CRE DE IPORÁ | E10: =Orçamento!$X$13 -> 774.52
A12: FILTRO | B12: PARCELA DE MAIOR RELEVÂNCIA
A13: =IF(G14>0,"F","") ->  | B13: CÓDIGO | C13: SERVIÇO | D13: DESCRIÇÃO | E13: UNID | F13: QUANT | G13: PARC. MAIOR RELEV (100%)
A14: =IF(G14>0,"F","") ->  | B14: f. | C14: INSTALAÇÕES ELÉTRICAS | D14: SUBESTAÇÃO | E14: KVA | F14: =SUMIF(Orçamento!$R$20:$R$328,'Parc Maior Relev'!D14,Orçamento!$T$20:$T$328) -> 0 | G14: =F14 -> 0
A15: =IF(SUM(G16:G30)>0,"F","") -> F | B15: CÓDIGO | C15: SERVIÇO | D15: DESCRIÇÃO | E15: UNID | F15: QUANT | G15: PARC. MAIOR RELEV (50%)
A16: =IF(G16>0,"F","") ->  | B16: e. | C16: ESTRUTURA | D16: CONCRETO | E16: M3 | F16: =SUMIF(Orçamento!$R$20:$R$328,'Parc Maior Relev'!D16,Orçamento!$T$20:$T$328) -> 0 | G16: =F16*0.5 -> 0
A17: =IF(G17>0,"F","") ->  | B17: f. | C17: INSTALAÇÕES ELÉTRICAS | D17: INSTALAÇÕES ELÉTRICAS | E17: KVA | F17: =SUMIF(Orçamento!$R$20:$R$328,'Parc Maior Relev'!D17,Orçamento!$T$20:$T$328) -> 0 | G17: =F17*0.5 -> 0
A18: =IF(G18>0,"F","") ->  | B18: o. | C18: COBERTURAS | D18: COBERTURA CERÂMICA | E18: M2 | F18: =SUMIF(Orçamento!$R$20:$R$328,'Parc Maior Relev'!D18,Orçamento!$T$20:$T$328) -> 0 | G18: 0
B19: o. | C19: COBERTURAS | D19: COBERTURA COM TELHA METÁLICA | E19: M2 | F19: =SUMIF(Orçamento!$R$20:$R$328,'Parc Maior Relev'!D19,Orçamento!$T$20:$T$328) -> 0 | G19: 0
B20: s. | C20: REVESTIMENTO DE PAREDE | D20: CHAPISCO | E20: M2 | F20: =SUMIF(Orçamento!$R$20:$R$328,'Parc Maior Relev'!D20,Orçamento!$T$20:$T$328) -> 0 | G20: 0
B21: s. | C21: REVESTIMENTO DE PAREDE | D21: REBOCO | E21: M2 | F21: =SUMIF(Orçamento!$R$20:$R$328,'Parc Maior Relev'!D21,Orçamento!$T$20:$T$328) -> 0 | G21: 0
B22: s. | C22: REVESTIMENTO DE PAREDE | D22: REVESTIMENTO CERÂMICO | E22: M2 | F22: =SUMIF(Orçamento!$R$20:$R$328,'Parc Maior Relev'!D22,Orçamento!$T$20:$T$328) -> 0 | G22: 0
B23: t. | C23: FORROS | D23: FORRO DE GESSO | E23: M2 | F23: =SUMIF(Orçamento!$R$20:$R$328,'Parc Maior Relev'!D23,Orçamento!$T$20:$T$328) -> 0 | G23: 0
B24: t. | C24: FORROS | D24: FORRO DE PVC | E24: M2 | F24: =SUMIF(Orçamento!$R$20:$R$328,'Parc Maior Relev'!D24,Orçamento!$T$20:$T$328) -> 0 | G24: 0
B25: t. | C25: FORROS | D25: FORRO DE GESSO ACARTONADO | E25: M2 | F25: =SUMIF(Orçamento!$R$20:$R$328,'Parc Maior Relev'!D25,Orçamento!$T$20:$T$328) -> 0 | G25: 0
B26: u. | C26: REVESTIMENTO DE PISO | D26: PISO DE GRANITINA | E26: M2 | F26: =SUMIF(Orçamento!$R$20:$R$328,'Parc Maior Relev'!D26,Orçamento!$T$20:$T$328) -> 0 | G26: 0
B27: u. | C27: REVESTIMENTO DE PISO | D27: PISO LAMINADO | E27: M2 | F27: =SUMIF(Orçamento!$R$20:$R$328,'Parc Maior Relev'!D27,Orçamento!$T$20:$T$328) -> 0 | G27: 0
B28: u. | C28: REVESTIMENTO DE PISO | D28: PISO DE CONCRETO DESEMPENADO | E28: M2 | F28: =SUMIF(Orçamento!$R$20:$R$328,'Parc Maior Relev'!D28,Orçamento!$T$20:$T$328) -> 0 | G28: 0
A29: F | B29: u. | C29: REVESTIMENTO DE PISO | D29: PISO CERÂMICO | E29: M2 | F29: =Orçamento!T104 -> 35.95 | G29: 17.975
A30: F | B30: y. | C30: PINTURA | D30: PINTURA | E30: M2 | F30: =Orçamento!T120 -> 1382 | G30: 691
A31: F
A32: F | B32: (*) Para os fins do inciso I dp § 1º do Art. 30 da Lei Federal 8.666/93, são consideradas parcelas de maior relevância técnica as execuções apresentadas
A33: F

Sheet Composições
A4: UNIDADE ESCOLAR | H4: CÓDIGO INEP
A5: =Orçamento!$O$4 -> CRE DE IPORÁ | H5: =Orçamento!$X$4 -> 52027163
A7: OBRA | H7: CIDADE
A8: =Orçamento!$O$7 -> REFORMA E AMPLIAÇÃO | H8: =Orçamento!$X$7 -> IPORÁ
A10: CRE | D10: ENDEREÇO | H10: REFERÊNCIA AGETOP
A11: =Orçamento!$O$10 -> CRE DE IPORÁ | D11: =Orçamento!$R$10 -> Rua D - Vila Padre Cícero - S/N - CEP:76.200-000 | H11: =Orçamento!$S$10 -> ABR/19 | I11: =Orçamento!$T$10 -> DESONERADA
A13: DATA | D13: ÁREA TOTAL CONSTRUÍDA (M²) | H13: REFERÊNCIA SINAPI
A14: =Orçamento!$S$7 -> 2020-06-10 | D14: =Orçamento!$X$13 -> 774.52 | H14: =Orçamento!$X$10 -> ABR/20 | I14: =Orçamento!$Y$10 -> DESONERADA
A16: COMPOSIÇÕES DE CUSTOS UNITÁRIOS - SEE-GO
A17: 84 | B17: FONTE | C17: CÓDIGO | D17: DESCRIÇÃO | E17: UNIDADE | F17: COEFIC. | G17: CUSTO UNITÁRIO | I17: CUSTO TOTAL (A) + (B) + (C) + (D) + (E)
G18: DESONERADO | H18: NÃO DESONER. | I18: DESONERADO | J18: NÃO DESONER.
B19: COMPOSIÇÃO | C19: COMP 084_SEE | D19: GUARDA-CORPO COM CORRIMÃO - SEDUC | E19: M | I19: 206.14 | J19: 211.22
B20: AGETOP_I | C20: 25 | D20: OFICIAL "B" | E20: h | F20: 1.1 | G20: 13.95 | H20: 16.16 | I20: 15.35 | J20: 17.78
B21: AGETOP_I | C21: 8 | D21: AJUDANTE | E21: h | F21: 1.1 | G21: 8.75 | H21: 10.14 | I21: 9.63 | J21: 11.15
B22: MÃO DE OBRA (B) - TOTAL | I22: 24.98 | J22: 28.93
B23: AGETOP_I | C23: 2376 | D23: TUBO INDUSTRIAL 2" CHAPA 13 | E23: Kg | F23: 7.7778 | G23: 5.23 | H23: 5.23 | I23: 40.68 | J23: 40.68
B24: AGETOP_I | C24: 2504 | D24: TUBO INDUSTRIAL D=25 MM CHAPA 13 | E24: Kg | F24: 4.632 | G24: 5.07 | H24: 5.07 | I24: 23.48 | J24: 23.48
B25: AGETOP_I | C25: 2377 | D25: TUBO INDUSTRIAL 40X40 CH.13 | E25: Kg | F25: 6.342 | G25: 5.07 | H25: 5.07 | I25: 32.15 | J25: 32.15
B26: AGETOP_I | C26: 2421 | D26: TUBO INDUSTRIAL 1.1/2" CHAPA 13 | E26: Kg | F26: 1.4862 | G26: 5.07 | H26: 5.07 | I26: 7.54 | J26: 7.54
B27: AGETOP_I | C27: 2417 | D27: MASSA PLASTICA | E27: Kg | F27: 0.2041 | G27: 10.58 | H27: 10.58 | I27: 2.16 | J27: 2.16
B28: AGETOP_I | C28: 2246 | D28: ELETRODO 2.5 OK | E28: Kg | F28: 0.1146 | G28: 8.7 | H28: 8.7 | I28: 1 | J28: 1
B29: AGETOP_I | C29: 1672 | D29: LIXA PARA FERRO ( NÚMERO 100 ) | E29: un | F29: 0.2551 | G29: 2.12 | H29: 2.12 | I29: 0.54 | J29: 0.54
B30: AGETOP_I | C30: 1264 | D30: DISCO DE DESBASTE 7/8" P/ CONC./FERRO (1/4" X 7") | E30: un | F30: 0.051 | G30: 7 | H30: 7 | I30: 0.36 | J30: 0.36
B31: AGETOP_I | C31: 1334 | D31: DISCO DE CORTE DIAM. 5/8"- 10" | E31: un | F31: 0.373 | G31: 5.5 | H31: 5.5 | I31: 2.05 | J31: 2.05
B32: AGETOP_I | C32: 2902 | D32: FABRICAÇÃO / MONTAGEM | E32: un | F32: 1 | G32: 50.44 | H32: 50.44 | I32: 50.44 | J32: 50.44
B33: AGETOP_I | C33: 2150 | D33: CHAPA DE FERRO DOBRADA No.13 | E33: Kg | F33: 0.4352 | G33: 5.28 | H33: 5.28 | I33: 2.3 | J33: 2.3
B34: AGETOP_I | C34: 2719 | D34: CHAPA PERFILADA 3/16" | E34: Kg | F34: 1.098 | G34: 5.04 | H34: 5.04 | I34: 5.53 | J34: 5.53
B35: AGETOP_I | C35: 2436 | D35: ACO CA-25 - 6,3 MM (1/4") - BARRA LISA A-36 | E35: Kg | F35: 0.38125 | G35: 5.13 | H35: 5.13 | I35: 1.96 | J35: 1.96
B36: AGETOP | C36: 261602 | D36: PINT.ESMALTE/ESQUAD.FERRO C/FUNDO ANTICOR. | E36: m2 | F36: 0.78 | G36: 14.07 | H36: 15.51 | I36: 10.97 | J36: 12.1
B37: MATERIAL (C) - TOTAL | I37: 181.16 | J37: 182.29
A39: 27 | B39: FONTE | C39: CÓDIGO | D39: DESCRIÇÃO | E39: UNIDADE | F39: COEFIC. | G39: CUSTO UNITÁRIO | I39: CUSTO TOTAL (A) + (B) + (C) + (D) + (E)
G40: DESONERADO | H40: NÃO DESONER. | I40: DESONERADO | J40: NÃO DESONER.
B41: COMPOSIÇÃO | C41: COMP 027_SEE | D41: TELA MOSQUITEIRA EM NYLON COM ESTRUTURA DE ALUMÍNIO, COM FORNECIMENTO DE MÃO DE OBRA E INSTALAÇÃO | E41: M2 | I41: 123.21 | J41: 123.21
B42: MÃO DE OBRA (B) - TOTAL | I42: 0 | J42: 0
B43: COTAÇÃO | C43: COT 002_SEE | D43: TELA MOSQUITEIRA EM NYLON COM ESTRUTURA DE ALUMÍNIO [M²], COM FORNECIMENTO DE MÃO DE OBRA E INSTALAÇÃO | E43: M2 | F43: 1 | G43: 123.2133333 | H43: 123.2133333 | I43: 123.21 | J43: 123.21
B44: MATERIAL (C) - TOTAL | I44: 123.21 | J44: 123.21
A46: 575 | B46: FONTE | C46: CÓDIGO | D46: DESCRIÇÃO | E46: UNID | F46: COEFIC. | G46: CUSTO UNITÁRIO | I46: CUSTO TOTAL (A) + (B) + (C) + (D) + (E)
G47: DESONERADO | H47: NÃO DESONER. | I47: DESONERADO | J47: NÃO DESONER.
B48: COMPOSIÇÃO | C48: COMP 575_SEE | D48: MOLA AEREA FECHA PORTA, PARA PORTAS COM LARGURA ATE 95 CM | E48: UN | F48: - | G48: - | H48: - | I48: 120.96 | J48: 121.83
B49: AGETOP_I | C49: 5 | D49: SERVENTE | E49: h | F49: 0.15 | G49: 8.75 | H49: 10.14 | I49: 1.31 | J49: 1.52
B50: AGETOP_I | C50: 24 | D50: MARCENEIRO | E50: h | F50: 0.3 | G50: 13.95 | H50: 16.16 | I50: 4.19 | J50: 4.85
B51: MÃO DE OBRA (B) - TOTAL | I51: 5.5 | J51: 6.37
B52: SINAPI_I | C52: 11560 | D52: MOLA AEREA FECHA PORTA, PARA PORTAS COM LARGURA ATE 95 CM | E52: UN | F52: 1 | G52: 115.46 | H52: 115.46 | I52: 115.46 | J52: 115.46
B53: MATERIAL (C) - TOTAL | I53: 115.46 | J53: 115.46
A55: 387 | B55: FONTE | C55: CÓDIGO | D55: DESCRIÇÃO | E55: UNIDADE | F55: COEFIC. | G55: CUSTO UNITÁRIO | I55: CUSTO TOTAL (A) + (B) + (C) + (D) + (E)
G56: DESONERADO | H56: NÃO DESONER. | I56: DESONERADO | J56: NÃO DESONER.
B57: COMPOSIÇÃO | C57: COMP 387_SEE | D57: LÂMPADA LED TUBULAR 18W | E57: UN | I57: 22.3 | J57: 22.35
B58: AGETOP_I | C58: 8 | D58: AJUDANTE | E58: h | F58: 0.015 | G58: 8.75 | H58: 10.14 | I58: 0.13 | J58: 0.15
B59: AGETOP_I | C59: 12 | D59: ELETRICISTA | E59: h | F59: 0.015 | G59: 13.95 | H59: 16.16 | I59: 0.21 | J59: 0.24
B60: MÃO DE OBRA (B) - TOTAL | I60: 0.34 | J60: 0.39
B61: COTAÇÃO | C61: COT 195_SEE | D61: LÂMPADA LED TUBULAR 18W | E61: UN | F61: 1 | G61: 21.96 | H61: 21.96 | I61: 21.96 | J61: 21.96
B62: MATERIAL (C) - TOTAL | I62: 21.96 | J62: 21.96
A64: 24 | B64: FONTE | C64: CÓDIGO | D64: DESCRIÇÃO | E64: UNIDADE | F64: COEFIC. | G64: CUSTO UNITÁRIO | I64: CUSTO TOTAL (A) + (B) + (C) + (D) + (E)
G65: DESONERADO | H65: NÃO DESONER. | I65: DESONERADO | J65: NÃO DESONER.
B66: COMPOSIÇÃO | C66: COMP 024_SEE | D66: SINALIZADOR FOTOLUMINESCENTE PARA EXTINTOR | E66: UN | G66: - | H66: - | I66: 25.32 | J66: 25.44
B67: AGETOP_I | C67: 5 | D67: SERVENTE | E67: h | F67: 0.09 | G67: 8.75 | H67: 10.14 | I67: 0.79 | J67: 0.91
B68: MÃO DE OBRA (B) - TOTAL | I68: 0.79 | J68: 0.91
B69: AGETOP_I | C69: 3070 | D69: BUCHA DE NYLON S-6 | E69: un | F69: 2 | G69: 0.04 | H69: 0.04 | I69: 0.08 | J69: 0.08
B70: AGETOP_I | C70: 3393 | D70: PARAFUSO P/BUCHA S-6 | E70: un | F70: 2 | G70: 0.08 | H70: 0.08 | I70: 0.16 | J70: 0.16
B71: SINAPI_I | C71: 37556 | D71: PLACA DE SINALIZACAO DE SEGURANCA CONTRA INCENDIO, FOTOLUMINESCENTE, QUADRADA, *20 X 20* CM, EM PVC *2* MM ANTI-CHAMAS (SIMBOLOS, CORES E PICTOGRAMAS CONFORME NBR 13434) | E71: UN | F71: 1 | G71: 24.29 | H71: 24.29 | I71: 24.29 | J71: 24.29
B72: MATERIAL (C) - TOTAL | I72: 24.53 | J72: 24.53
A74: 25 | B74: FONTE | C74: CÓDIGO | D74: DESCRIÇÃO | E74: UNIDADE | F74: COEFIC. | G74: CUSTO UNITÁRIO | I74: CUSTO TOTAL (A) + (B) + (C) + (D) + (E)
G75: DESONERADO | H75: NÃO DESONER. | I75: DESONERADO | J75: NÃO DESONER.
B76: COMPOSIÇÃO | C76: COMP 025_SEE | D76: SINALIZADOR FOTOLUMINESCENTE DE EMERGÊNCIA | E76: UN | G76: - | H76: - | I76: 25.32 | J76: 25.44
B77: AGETOP_I | C77: 5 | D77: SERVENTE | E77: h | F77: 0.09 | G77: 8.75 | H77: 10.14 | I77: 0.79 | J77: 0.91
B78: MÃO DE OBRA (B) - TOTAL | I78: 0.79 | J78: 0.91
B79: AGETOP_I | C79: 3070 | D79: BUCHA DE NYLON S-6 | E79: un | F79: 2 | G79: 0.04 | H79: 0.04 | I79: 0.08 | J79: 0.08
B80: AGETOP_I | C80: 3393 | D80: PARAFUSO P/BUCHA S-6 | E80: un | F80: 2 | G80: 0.08 | H80: 0.08 | I80: 0.16 | J80: 0.16
B81: SINAPI_I | C81: 37556 | D81: PLACA DE SINALIZACAO DE SEGURANCA CONTRA INCENDIO, FOTOLUMINESCENTE, QUADRADA, *20 X 20* CM, EM PVC *2* MM ANTI-CHAMAS (SIMBOLOS, CORES E PICTOGRAMAS CONFORME NBR 13434) | E81: UN | F81: 1 | G81: 24.29 | H81: 24.29 | I81: 24.29 | J81: 24.29
B82: MATERIAL (C) - TOTAL | I82: 24.53 | J82: 24.53
A84: 277 | B84: FONTE | C84: CÓDIGO | D84: DESCRIÇÃO | E84: UNIDADE | F84: COEFIC. | G84: CUSTO UNITÁRIO | I84: CUSTO TOTAL (A) + (B) + (C) + (D) + (E)
G85: DESONERADO | H85: NÃO DESONER. | I85: DESONERADO | J85: NÃO DESONER.
B86: COMPOSIÇÃO | C86: COMP 277_SEE | D86: MARCAÇÃO NO PISO - 1X1 M PARA EXTINTOR | E86: M2 | I86: 29.69 | J86: 29.76
B87: AGETOP_I | C87: 5 | D87: SERVENTE | E87: h | F87: 0.0333 | G87: 8.75 | H87: 10.14 | I87: 0.29 | J87: 0.34
B88: MÃO DE OBRA (B) - TOTAL | I88: 0.29 | J88: 0.34
B89: SINAPI_I | C89: 5318 | D89: SOLVENTE DILUENTE A BASE DE AGUARRAS | E89: L | F89: 0.13 | G89: 11.98 | H89: 11.98 | I89: 1.56 | J89: 1.56
B90: SINAPI | C90: 5824 | D90: CAMINHÃO TOCO, PBT 16.000 KG, CARGA ÚTIL MÁX. 10.685 KG, DIST. ENTRE EIXOS 4,8 M, POTÊNCIA 189 CV, INCLUSIVE CARROCERIA FIXA ABERTA DE MADEIRA P/ TRANSPORTE GERAL DE CARGA SECA, DIMEN. APROX. 2,5 X 7,00 X 0,50 M - CHP DIURNO. AF_06/2014 | E90: CHP | F90: 0.0033 | G90: 115.5 | H90: 118.69 | I90: 0.38 | J90: 0.39
B91: SINAPI_I | C91: 7343 | D91: TINTA A BASE DE RESINA ACRILICA, PARA SINALIZACAO HORIZONTAL VIARIA (NBR 11862) | E91: L | F91: 0.6 | G91: 12.82 | H91: 12.82 | I91: 7.69 | J91: 7.69
B92: SINAPI_I | C92: 7348 | D92: TINTA ACRILICA PREMIUM PARA PISO | E92: L | F92: 0.03 | G92: 13.96 | H92: 13.96 | I92: 0.42 | J92: 0.42
B93: SINAPI_I | C93: 25972 | D93: MICROESFERAS DE VIDRO PARA SINALIZACAO HORIZONTAL VIARIA, TIPO I-B (PREMIX) - NBR 16184 | E93: KG | F93: 2.14 | G93: 8.88 | H93: 8.88 | I93: 19 | J93: 19
B94: SINAPI | C94: 95133 | D94: MÁQUINA DEMARCADORA DE FAIXA DE TRÁFEGO À FRIO, AUTOPROPELIDA, POTÊNCIA 38 HP - CHP DIURNO. AF_07/2016 | E94: CHP | F94: 0.0033 | G94: 105.93 | H94: 109.48 | I94: 0.35 | J94: 0.36
B95: MATERIAL (C) - TOTAL | I95: 29.4 | J95: 29.42
A97: 382 | B97: FONTE | C97: CÓDIGO | D97: DESCRIÇÃO | E97: UNIDADE | F97: COEFIC. | G97: CUSTO UNITÁRIO | I97: CUSTO TOTAL (A) + (B) + (C) + (D) + (E)
G98: DESONERADO | H98: NÃO DESONER. | I98: DESONERADO | J98: NÃO DESONER.
B99: COMPOSIÇÃO | C99: COMP 382_SEE | D99: TE DE REDUCAO DE FERRO GALVANIZADO, COM ROSCA BSP, DE 3/4" X 1/2" | E99: UN | I99: 24.25 | J99: 26.43
B100: AGETOP_I | C100: 8 | D100: AJUDANTE | E100: h | F100: 0.6 | G100: 8.75 | H100: 10.14 | I100: 5.25 | J100: 6.08
B101: AGETOP_I | C101: 11 | D101: ENCANADOR | E101: h | F101: 0.6105 | G101: 13.95 | H101: 16.16 | I101: 8.52 | J101: 9.87
B102: MÃO DE OBRA (B) - TOTAL | I102: 13.77 | J102: 15.95
B103: SINAPI_I | C103: 3146 | D103: FITA VEDA ROSCA EM ROLOS DE 18 MM X 10 M (L X C) | E103: UN | F103: 0.120754717 | G103: 3.4 | H103: 3.4 | I103: 0.41 | J103: 0.41
B104: SINAPI_I | C104: 6302 | D104: TE DE REDUCAO DE FERRO GALVANIZADO, COM ROSCA BSP, DE 3/4" X 1/2" | E104: UN | F104: 1 | G104: 10.07 | H104: 10.07 | I104: 10.07 | J104: 10.07
B105: MATERIAL (C) - TOTAL | I105: 10.48 | J105: 10.48
A107: 383 | B107: FONTE | C107: CÓDIGO | D107: DESCRIÇÃO | E107: UNIDADE | F107: COEFIC. | G107: CUSTO UNITÁRIO | I107: CUSTO TOTAL (A) + (B) + (C) + (D) + (E)
G108: DESONERADO | H108: NÃO DESONER. | I108: DESONERADO | J108: NÃO DESONER.
B109: COMPOSIÇÃO | C109: COMP 383_SEE | D109: BUCHA DE REDUCAO DE FERRO GALVANIZADO, COM ROSCA BSP, DE 1/2" X 1/4" | E109: UN | I109: 7.68 | J109: 8.26
B110: AGETOP_I | C110: 8 | D110: AJUDANTE | E110: h | F110: 0.16 | G110: 8.75 | H110: 10.14 | I110: 1.4 | J110: 1.62
B111: AGETOP_I | C111: 11 | D111: ENCANADOR | E111: h | F111: 0.16 | G111: 13.95 | H111: 16.16 | I111: 2.23 | J111: 2.59
B112: MÃO DE OBRA (B) - TOTAL | I112: 3.63 | J112: 4.21
B113: AGETOP_I | C113: H689 | D113: FITA VEDAROSCA 12 MM | E113: m | F113: 1.2 | G113: 0.28 | H113: 0.28 | I113: 0.34 | J113: 0.34
B114: SINAPI_I | C114: 770 | D114: BUCHA DE REDUCAO DE FERRO GALVANIZADO, COM ROSCA BSP, DE 1/2" X 1/4" | E114: UN | F114: 1 | G114: 3.71 | H114: 3.71 | I114: 3.71 | J114: 3.71
B115: MATERIAL (C) - TOTAL | I115: 4.05 | J115: 4.05
A117: 212 | B117: FONTE | C117: CÓDIGO | D117: DESCRIÇÃO | E117: UNIDADE | F117: COEFIC. | G117: CUSTO UNITÁRIO | I117: CUSTO TOTAL (A) + (B) + (C) + (D) + (E)
G118: DESONERADO | H118: NÃO DESONER. | I118: DESONERADO | J118: NÃO DESONER.
B119: COMPOSIÇÃO | C119: COMP 212_SEE | D119: NIPLE DE REDUÇÃO 1/2" X 1/4" BSP | E119: UN | I119: 9.68 | J119: 10.26
B120: AGETOP_I | C120: 8 | D120: AJUDANTE | E120: h | F120: 0.16 | G120: 8.75 | H120: 10.14 | I120: 1.4 | J120: 1.62
B121: AGETOP_I | C121: 11 | D121: ENCANADOR | E121: h | F121: 0.16 | G121: 13.95 | H121: 16.16 | I121: 2.23 | J121: 2.59
B122: MÃO DE OBRA (B) - TOTAL | I122: 3.63 | J122: 4.21
B123: COTAÇÃO | C123: COT 103_SEE | D123: NIPLE DE REDUÇÃO 1/2" X 1/4" BSP | E123: UN | F123: 1 | G123: 6.053333333 | H123: 6.053333333 | I123: 6.05 | J123: 6.05
B124: MATERIAL (C) - TOTAL | I124: 6.05 | J124: 6.05
A126: 213 | B126: FONTE | C126: CÓDIGO | D126: DESCRIÇÃO | E126: UNIDADE | F126: COEFIC. | G126: CUSTO UNITÁRIO | I126: CUSTO TOTAL (A) + (B) + (C) + (D) + (E)
G127: DESONERADO | H127: NÃO DESONER. | I127: DESONERADO | J127: NÃO DESONER.
B128: COMPOSIÇÃO | C128: COMP 213_SEE | D128: NIPLE DE REDUÇÃO 3/4" X 1/2" BSP | E128: UN | I128: 13.34 | J128: 13.92
B129: AGETOP_I | C129: 8 | D129: AJUDANTE | E129: h | F129: 0.16 | G129: 8.75 | H129: 10.14 | I129: 1.4 | J129: 1.62
B130: AGETOP_I | C130: 11 | D130: ENCANADOR | E130: h | F130: 0.16 | G130: 13.95 | H130: 16.16 | I130: 2.23 | J130: 2.59
B131: MÃO DE OBRA (B) - TOTAL | I131: 3.63 | J131: 4.21
B132: COTAÇÃO | C132: COT 104_SEE | D132: NIPLE DE REDUÇÃO 3/4" X 1/2" BSP | E132: UN | F132: 1 | G132: 9.71 | H132: 9.71 | I132: 9.71 | J132: 9.71
B133: MATERIAL (C) - TOTAL | I133: 9.71 | J133: 9.71
A135: 237 | B135: FONTE | C135: CÓDIGO | D135: DESCRIÇÃO | E135: UNIDADE | F135: COEFIC. | G135: CUSTO UNITÁRIO | I135: CUSTO TOTAL (A) + (B) + (C) + (D) + (E)
G136: DESONERADO | H136: NÃO DESONER. | I136: DESONERADO | J136: NÃO DESONER.
B137: COMPOSIÇÃO | C137: COMP 237_SEE | D137: FITA ANTICORROSIVA | E137: M | I137: 11.16 | J137: 11.88
B138: AGETOP_I | C138: 8 | D138: AJUDANTE | E138: h | F138: 0.2 | G138: 8.75 | H138: 10.14 | I138: 1.75 | J138: 2.03
B139: AGETOP_I | C139: 12 | D139: ELETRICISTA | E139: h | F139: 0.2 | G139: 13.95 | H139: 16.16 | I139: 2.79 | J139: 3.23
B140: MÃO DE OBRA (B) - TOTAL | I140: 4.54 | J140: 5.26
B141: SINAPI_I | C141: 39634 | D141: FITA ADESIVA ANTICORROSIVA DE PVC FLEXIVEL, COR PRETA, PARA PROTECAO TUBULACAO, 50 MM X 30 M (L X C), E= *0,25* MM | E141: M | F141: 1 | G141: 6.62 | H141: 6.62 | I141: 6.62 | J141: 6.62
B142: MATERIAL (C) - TOTAL | I142: 6.62 | J142: 6.62
A144: 542 | B144: FONTE | C144: CÓDIGO | D144: DESCRIÇÃO | E144: UNIDADE | F144: COEFIC. | G144: CUSTO UNITÁRIO | I144: CUSTO TOTAL (A) + (B) + (C) + (D) + (E)
G145: DESONERADO | H145: NÃO DESONER. | I145: DESONERADO | J145: NÃO DESONER.
B146: COMPOSIÇÃO | C146: COMP 542_SEE | D146: VÁLVULA UGV 3/4" (S) LATÃO | E146: UN | I146: 25.65 | J146: 27.2
B147: AGETOP_I | C147: 8 | D147: AJUDANTE | E147: h | F147: 0.432 | G147: 8.75 | H147: 10.14 | I147: 3.78 | J147: 4.38
B148: AGETOP_I | C148: 11 | D148: ENCANADOR | E148: h | F148: 0.432 | G148: 13.95 | H148: 16.16 | I148: 6.03 | J148: 6.98
B149: MÃO DE OBRA (B) - TOTAL | I149: 9.81 | J149: 11.36
B150: COTAÇÃO | C150: COT 281_SEE | D150: VÁLVULA UGV 3/4" (S) LATÃO | E150: UN | F150: 1 | G150: 15.83666667 | H150: 15.83666667 | I150: 15.84 | J150: 15.84
B151: MATERIAL (C) - TOTAL | I151: 15.84 | J151: 15.84
A153: 543 | B153: FONTE | C153: CÓDIGO | D153: DESCRIÇÃO | E153: UNIDADE | F153: COEFIC. | G153: CUSTO UNITÁRIO | I153: CUSTO TOTAL (A) + (B) + (C) + (D) + (E)
G154: DESONERADO | H154: NÃO DESONER. | I154: DESONERADO | J154: NÃO DESONER.
B155: COMPOSIÇÃO | C155: COMP 543_SEE | D155: VÁLVULA UGV 1/2" (S) LATÃO | E155: UN | I155: 24.98 | J155: 26.53
B156: AGETOP_I | C156: 8 | D156: AJUDANTE | E156: h | F156: 0.432 | G156: 8.75 | H156: 10.14 | I156: 3.78 | J156: 4.38
B157: AGETOP_I | C157: 11 | D157: ENCANADOR | E157: h | F157: 0.432 | G157: 13.95 | H157: 16.16 | I157: 6.03 | J157: 6.98
B158: MÃO DE OBRA (B) - TOTAL | I158: 9.81 | J158: 11.36
B159: COTAÇÃO | C159: COT 282_SEE | D159: VÁLVULA UGV 1/2" (S) LATÃO | E159: UN | F159: 1 | G159: 15.16666667 | H159: 15.16666667 | I159: 15.17 | J159: 15.17
B160: MATERIAL (C) - TOTAL | I160: 15.17 | J160: 15.17
A162: 211 | B162: FONTE | C162: CÓDIGO | D162: DESCRIÇÃO | E162: UNIDADE | F162: COEFIC. | G162: CUSTO UNITÁRIO | I162: CUSTO TOTAL (A) + (B) + (C) + (D) + (E)
G163: DESONERADO | H163: NÃO DESONER. | I163: DESONERADO | J163: NÃO DESONER.
B164: COMPOSIÇÃO | C164: COMP 211_SEE | D164: REGULADOR DE 2º ESTÁGIO 5KG/H | E164: UN | I164: 86.72 | J164: 90.86
B165: AGETOP_I | C165: 8 | D165: AJUDANTE | E165: h | F165: 1.15 | G165: 8.75 | H165: 10.14 | I165: 10.06 | J165: 11.66
B166: AGETOP_I | C166: 11 | D166: ENCANADOR | E166: h | F166: 1.15 | G166: 13.95 | H166: 16.16 | I166: 16.04 | J166: 18.58
B167: MÃO DE OBRA (B) - TOTAL | I167: 26.1 | J167: 30.24
B168: COTAÇÃO | C168: COT 102_SEE | D168: REGULADOR DE 2º ESTÁGIO 5KG/H | E168: UN | F168: 1 | G168: 59.83333333 | H168: 59.83333333 | I168: 59.83 | J168: 59.83
B169: AGETOP_I | C169: H689 | D169: FITA VEDAROSCA 12 MM | E169: m | F169: 2.82 | G169: 0.28 | H169: 0.28 | I169: 0.79 | J169: 0.79
B170: MATERIAL (C) - TOTAL | I170: 60.62 | J170: 60.62
A172: 210 | B172: FONTE | C172: CÓDIGO | D172: DESCRIÇÃO | E172: UNIDADE | F172: COEFIC. | G172: CUSTO UNITÁRIO | I172: CUSTO TOTAL (A) + (B) + (C) + (D) + (E)
G173: DESONERADO | H173: NÃO DESONER. | I173: DESONERADO | J173: NÃO DESONER.
B174: COMPOSIÇÃO | C174: COMP 210_SEE | D174: REGULADOR DE 1º ESTÁGIO 60KG/H MODELO AP-40 COM MANÔMETRO | E174: UN | I174: 232.47 | J174: 236.61
B175: AGETOP_I | C175: 8 | D175: AJUDANTE | E175: h | F175: 1.15 | G175: 8.75 | H175: 10.14 | I175: 10.06 | J175: 11.66
B176: AGETOP_I | C176: 11 | D176: ENCANADOR | E176: h | F176: 1.15 | G176: 13.95 | H176: 16.16 | I176: 16.04 | J176: 18.58
B177: MÃO DE OBRA (B) - TOTAL | I177: 26.1 | J177: 30.24
B178: COTAÇÃO | C178: COT 101_SEE | D178: REGULADOR DE 1º ESTÁGIO 60KG/H MODELO AP-40 COM MANÔMETRO | E178: UN | F178: 1 | G178: 205.5766667 | H178: 205.5766667 | I178: 205.58 | J178: 205.58
B179: AGETOP_I | C179: H689 | D179: FITA VEDAROSCA 12 MM | E179: m | F179: 2.82 | G179: 0.28 | H179: 0.28 | I179: 0.79 | J179: 0.79
B180: MATERIAL (C) - TOTAL | I180: 206.37 | J180: 206.37
A182: 235 | B182: FONTE | C182: CÓDIGO | D182: DESCRIÇÃO | E182: UNIDADE | F182: COEFIC. | G182: CUSTO UNITÁRIO | I182: CUSTO TOTAL (A) + (B) + (C) + (D) + (E)
G183: DESONERADO | H183: NÃO DESONER. | I183: DESONERADO | J183: NÃO DESONER.
B184: COMPOSIÇÃO | C184: COMP 235_SEE | D184: PLACA DE SINALIZAÇÃO EM PVC COD 01 - (300X300) PROIBIDO FUMAR | E184: UN | I184: 25.32 | J184: 25.44
B185: AGETOP_I | C185: 5 | D185: SERVENTE | E185: h | F185: 0.09 | G185: 8.75 | H185: 10.14 | I185: 0.79 | J185: 0.91
B186: MÃO DE OBRA (B) - TOTAL | I186: 0.79 | J186: 0.91
B187: AGETOP_I | C187: 3070 | D187: BUCHA DE NYLON S-6 | E187: un | F187: 2 | G187: 0.04 | H187: 0.04 | I187: 0.08 | J187: 0.08
B188: AGETOP_I | C188: 3393 | D188: PARAFUSO P/BUCHA S-6 | E188: un | F188: 2 | G188: 0.08 | H188: 0.08 | I188: 0.16 | J188: 0.16
B189: SINAPI_I | C189: 37556 | D189: PLACA DE SINALIZACAO DE SEGURANCA CONTRA INCENDIO, FOTOLUMINESCENTE, QUADRADA, *20 X 20* CM, EM PVC *2* MM ANTI-CHAMAS (SIMBOLOS, CORES E PICTOGRAMAS CONFORME NBR 13434) | E189: UN | F189: 1 | G189: 24.29 | H189: 24.29 | I189: 24.29 | J189: 24.29
B190: MATERIAL (C) - TOTAL | I190: 24.53 | J190: 24.53
A192: 236 | B192: FONTE | C192: CÓDIGO | D192: DESCRIÇÃO | E192: UNIDADE | F192: COEFIC. | G192: CUSTO UNITÁRIO | I192: CUSTO TOTAL (A) + (B) + (C) + (D) + (E)
G193: DESONERADO | H193: NÃO DESONER. | I193: DESONERADO | J193: NÃO DESONER.
B194: COMPOSIÇÃO | C194: COMP 236_SEE | D194: PLACA DE SINALIZAÇÃO EM PVC COD 06 - (300X300) PERIGO INFLAMÁVEL | E194: UN | I194: 25.32 | J194: 25.44
B195: AGETOP_I | C195: 5 | D195: SERVENTE | E195: h | F195: 0.09 | G195: 8.75 | H195: 10.14 | I195: 0.79 | J195: 0.91
B196: MÃO DE OBRA (B) - TOTAL | I196: 0.79 | J196: 0.91
B197: AGETOP_I | C197: 3070 | D197: BUCHA DE NYLON S-6 | E197: un | F197: 2 | G197: 0.04 | H197: 0.04 | I197: 0.08 | J197: 0.08
B198: AGETOP_I | C198: 3393 | D198: PARAFUSO P/BUCHA S-6 | E198: un | F198: 2 | G198: 0.08 | H198: 0.08 | I198: 0.16 | J198: 0.16
B199: SINAPI_I | C199: 37556 | D199: PLACA DE SINALIZACAO DE SEGURANCA CONTRA INCENDIO, FOTOLUMINESCENTE, QUADRADA, *20 X 20* CM, EM PVC *2* MM ANTI-CHAMAS (SIMBOLOS, CORES E PICTOGRAMAS CONFORME NBR 13434) | E199: UN | F199: 1 | G199: 24.29 | H199: 24.29 | I199: 24.29 | J199: 24.29
B200: MATERIAL (C) - TOTAL | I200: 24.53 | J200: 24.53
A202: 45 | B202: FONTE | C202: CÓDIGO | D202: DESCRIÇÃO | E202: UNIDADE | F202: COEFIC. | G202: CUSTO UNITÁRIO | I202: CUSTO TOTAL (A) + (B) + (C) + (D) + (E)
G203: DESONERADO | H203: NÃO DESONER. | I203: DESONERADO | J203: NÃO DESONER.
B204: COMPOSIÇÃO | C204: COMP 045_SEE | D204: LAUDO DE ESTANQUEIDADE | E204: UN | I204: 936 | J204: 1085.12
B205: AGETOP | C205: 250101 | D205: ENGENHEIRO - (OBRAS CIVIS) | E205: H | F205: 16 | G205: 58.5 | H205: 67.82 | I205: 936 | J205: 1085.12
B206: MÃO DE OBRA (B) - TOTAL | I206: 936 | J206: 1085.12
B207: MATERIAL (C) - TOTAL | I207: 0 | J207: 0
